Workbook

Sheet ACCUEIL
AF7: acide éthanoïque / ion éthanoate CH3COOH / CH3COO- | AI7: 4.75
O8: innovsciences | AF8: acide propénoïque / ion propanoate CH3CH2COOH / CH3CH2COO- | AI8: 4.87
AF9: pyridium / 7pyridine C5H5NH+ / C5H5N | AI9: 5.18
AF10: hydroxylammonium / hydroxylamine NH3OH+ / NH2OH | AI10: 6
AF11: dioxyde de carbone / hydrogénocarbonate CO2,H2O / HCO3- | AI11: 6.35
AF12: hydrogénosulfite / sulfite HSO3- / SO32- | AI12: 7.19
AF13: hypochloreux / hypochlorite HClO / ClO- | AI13: 7.3
AF14: hydrazineammonium / hydrazine H2N-NH3+ / H2N-NH2 | AI14: 8.48
AF15: ammonium / ammoniac NH4+ / NH3 | AI15: 9.25

Sheet INTERFACE
B4: Choix de la solution
C5: 0 | D5: =IF(G$12="","",IF(G$12>=0,"Couple acide/base")) ->  | F5: Réinitialisation | G5: Pause | H5: Simulation | L5: innovsciences | AF5: =IF(C$5=0,"",IF(C$5=1,AJ$7,IF(C$5=2,AJ$8,IF(C$5=3,AJ$9,IF(C$5=4,AJ$10))))) -> 
D6: =AF5 -> 
AD7: Solution d'acide fluorhydrique | AI7: 3.25 | AJ7: HF/F- | AL7: [ A- ] %(pKa/2) | AM7: [HA ] %(pKa/2)
AD8: Solution d'acide éthanoïque | AI8: 4.75 | AJ8: CH3COOH/CH3COO- | AL8: =((C$11)/((10^-(B$11/2))+(C$11)))*100 ->  | AM8: =100-AL$8 -> 
AD9: Solution d'hypochlorite de sodium | AI9: 7.5 | AJ9: HClO/ClO- | AL9: [ A- ] %(3pKa/2) | AM9: [HA ] %(3pKa/2)
B10: pKa | C10: Ka | D10: Ke | E10: pKe | G10: Concentration initiale | AD10: Solution d'ammoniac | AI10: 9.25 | AJ10: NH4+/NH3 | AL10: =((C$11)/((10^-(3*B$11/2))+(C$11)))*100 ->  | AM10: =100-AL$10 -> 
B11: =IF(C$5=0,"",IF(C$5=1,AI7,IF(C$5=2,AI8,IF(C$5=3,AI9,IF(C$5=4,AI$10))))) ->  | C11: =IF(C$5=0,"",IF(C$5<>0,10^-B11)) ->  | D11: =IF(C$5=0,"",IF(C$5<>0,10^-14)) ->  | E11: =IF(C$5=0,"",IF(C$5<>0,-LOG(D$11))) ->  | G11: C ( en mol.L- 1 ) | AL11: pKa/2 | AM11: 3*pKa/2
G12: =IF(AND(AD$13="",C$5=1),AF$13/5,IF(AND(AD$13="",C$5=2),AF$13/200,IF(AND(AD$13="",C$5=3),AF$13/10000,IF(AND(AD$13="",C$5=4),AF$13/500,IF(C$5=0,"",IF(C$5=1,MIN(Y$13,AF$13),IF(C$5=2,MIN(Z$13,AF$13),IF(C$5=3,MIN(AA$13,AF$13),IF(C$5=4,MIN(AB$13,AF$13,AF$13)))))))))) ->  | AD12: Play | AH12: Pas | AL12: =B$11/2 ->  | AM12: =3*B$11/2 -> 
B13: [H3O+] (en mol.L-1) | C13: pH | D13: Taux d'avancement final tf | Y13: =AD$13/5 -> 0 | Z13: =AD$13/200 -> 0 | AA13: =AD$13/10000 -> 0 | AB13: =AD$13/500 -> 0 | AD13: 0 | AE13: =MIN(0.01*AD$13,0.001) -> 0 | AF13: =MAX(AD$13,0.05) -> 0.05 | AH13: =0.001 -> 0.001
B14: =IF(C$5=0,"",IF(C$5=1,AD$25,IF(C$5=2,AD$25,IF(C$5=3,AD$36,IF(C$5=4,AD$36))))) ->  | C14: =IF(C$5=0,"",IF(C$5<>0,-LOG(B$14))) ->  | D14: =IF(AND(G$12=0,C$5=1),"",IF(AND(G$12=0,C$5=2),"",IF(AND(G$12=0,C$5=3),"",IF(AND(G$12=0,C$5=4),"",IF(C$5=0,"",IF(AND(G$12<>0,C$5=1),B$14/G$12,IF(AND(G$12<>0,C$5=2),B$14/G$12,IF(AND(G$12<>0,C$5=3),(D11)/(B14*G$12),IF(AND(G$12<>0,C$5=4),(D11)/(B14*G$12)))))))))) -> 
AD15: 0 | AE15: =MIN(AD$15,AF$15) -> 0 | AF15: 12 | AH15: =0.25 -> 0.25
E16: =IF(AD$15<12.5,"",IF(AD$15=12.5,"Fin de la simulation; explorer le graphe")) -> 
B17: =IF(C$5=0,"",IF(C$5=1,"[F-] %",IF(C$5=2,"[CH3COO-] %",IF(C$5=3,"[ClO-] %",IF(C$5=4,"[NH3] %"))))) ->  | C17: =IF(C$5=0,"",IF(C$5=1,"[HF] %",IF(C$5=2,"[CH3COOH] %",IF(C$5=3,"[HClO] %",IF(C$5=4,"[NH4+] %"))))) ->  | AD17: calcul de pH solution acide | AK17: crit clig
B18: =IF(G$12=0,0,IF(C$5=0,"",IF(C$5<>0,(C$11/(10^-C$14+C$11))*100))) ->  | C18: =IF(G$12=0,0,IF(C$5=0,"",IF(C$5<>0,100-B$18))) ->  | AD18: a | AF18: b | AH18: c | AK18: 5
AK19: Ka
AD20: =AK$20 ->  | AF20: =-(AK$20*G$12+D$11) ->  | AH20: =-AK$20*D$11 ->  | AK20: =IF(C$5=0,"",IF(C$5=1,C$11,IF(C$5=2,C$11,IF(C$5=3,"",IF(C$5=4,""))))) -> 
D21: =IF(G$12=0,"",IF(G$12="","",IF(AND(C$14<B$11,C$5=1),"[HA] = [HF] l'acide prédomine",IF(AND(C$14>B$11,C$5=1),"[A-] = [F-] la base prédomine",IF(AND(C$1=B$11,C$5=1),"[ HF ] = [F-] aucune prédominance",IF(AND(C$14<B$11,C$5=2),"[HA] = [CH3COOH] l'acide prédomine",IF(AND(C$14>B$11,C$5=2),"[A-] = [CH3COO-] la base prédomine",IF(AND(C$1=B$11,C$5=2),"[ CH3COOH ] = [CH3COO-] aucune prédominance",IF(AND(C$14<B$11,C$5=3),"[HA] = [HClO] l'acide prédomine",IF(AND(C$14>B$11,C$5=3),"[A-] = [ClO-] la base prédomine",IF(AND(C$1=B$11,C$5=3),"[ HClO ] = [HClO-] aucune prédominance",IF(G$12=0,"",IF(AND(C$14<B$11,C$5=4),"[HA] = [NH4+] l'acide prédomine",IF(AND(C$14>B$11,C$5=4),"[A-] = [NH3] la base prédomine",IF(AND(C$1=B$11,C$5=4),"[ NH4+ ] = [NH3] aucune prédominance"))))))))))))))) ->  | AD21: L | AE21: M | AF21: S | AG21: P | AH21: r | AI21: j
AD22: =AF$20-AD$20^2/3 ->  | AE22: =(2*AD$20^3/27)-(AD$20*AF$20/3)+(AH$20) ->  | AF22: =-AE$22 ->  | AG22: =-AD$22^3/27 ->  | AH22: =SQRT(AG$22) ->  | AI22: =ACOS(0.5*AF$22/AH$22) -> 
AD24: [H3O+] | AE24: pH | AF24: D
AD25: =2*SQRT(-AD$22/3)*COS(AI$22/3)-C$11/3 ->  | AE25: =-LOG(AD$25) ->  | AF25: =AF$22^2-(4*AG$22) -> 
J26: =IF(C$5=0,"",IF(C$5<>0,"pH")) ->  | K26: =IF(C$5=0,"",IF(C$5=1,"[F-]%",IF(C$5=2,"[CH3COO-] %",IF(C$5=3,"[ClO-] %",IF(C$5=4,"[NH3] %"))))) ->  | L26: =IF(C$5=0,"",IF(C$5=1,"[HF] %",IF(C$5=2,"[CH3COOH] %",IF(C$5=3,"[HClO]%",IF(C$5=4,"[NH4+] %"))))) -> 
J27: =IF(C$5=0,"",IF(C$5<>0,MAX(AE$15,E51))) ->  | K27: =IF(C$5=0,"",IF(G$12=0,0,IF(C$5<>0,((C$11)/((10^(-B47))+(C$11)))*100))) ->  | L27: =IF(C$5=0,"",IF(G$12=0,0,IF(C$5<>0,100-C47))) -> 
K28: =IF(C$5=0,"",IF(G$12=0,"",IF(J$27<B$11,"La forme acide prédomine",IF(J$27>B$11,"La forme basique prédomine",IF(J$27=B$11,"Aucune prédominance"))))) ->  | AD28: calcul de pH solution basique
AD29: a | AF29: b | AH29: c | AK29: Kb
AK30: =IF(C$5=0,"",IF(C$5=1,"",IF(C$5=2,"",IF(C$5=3,D$11/C$11,IF(C$5=4,D$11/C$11))))) -> 
AD31: =AK$30 ->  | AF31: =-(AK$30*G$12+D$11) ->  | AH31: =-AK$30*D$11 -> 
AD32: L | AE32: M | AF32: S | AG32: P | AH32: r | AI32: j
AD33: =AF$31-AD$31^2/3 ->  | AE33: =(2*AD$31^3/27)-(AD$31*AF$31/3)+(AH$31) ->  | AF33: =-AE$33 ->  | AG33: =-AD$33^3/27 ->  | AH33: =SQRT(AG$33) ->  | AI33: =ACOS(0.5*AF$33/AH$33) -> 
AD35: [H3O+] | AE35: pH | AF35: D
AD36: =((2*SQRT(-AD$33/3)*COS(AI$33/3)-AK$30/3)^-1)*D$11 ->  | AE36: =-LOG(AD$36) ->  | AF36: =AF$33^2-(4*AG$33) -> 
F44: intersection | H44: [ A- ] % | J44: [HA ] %
F45: =IF(B$47<B$11,"",IF(B$47>=B$11,B$11)) ->  | G45: 0 | H45: =B$47 -> 0 | I45: =C$47 ->  | J45: =B$47 -> 0 | K45: =D$47 -> 
B46: pH vari | C46: [ A- ] % | D46: [HA ] % | F46: =IF(B$47<B$11,"",IF(B$47>=B$11,B$11)) ->  | G46: =IF(B$47<B$11,"",IF(B$47>=B$11,50)) ->  | H46: =B$47 -> 0 | I46: 0 | J46: =B$47 -> 0 | K46: 0
B47: =MAX(AE$15,E51) -> 0 | C47: =((C$11)/((10^(-B47))+(C$11)))*100 ->  | D47: =100-C47 ->  | F47: =IF(B$47<B$11,"",IF(B$47>=B$11,0)) ->  | G47: =IF(B$47<B$11,"",IF(B$47>=B$11,50)) -> 
A50: pH | B50: [ A- ] % | C50: [HA ] % | E50: pH inter | F50: [ A- ] % | G50: [HA ] %
A51: =MIN(AD$15,E51) -> 0 | B51: =MIN(C$47,F51) ->  | C51: =100-B51 ->  | E51: 0 | F51: =((C$11)/((10^(-E51))+(C$11)))*100 ->  | G51: =100-F51 -> 
A52: 0 | C52: =100-B52 ->  | E52: =E51+12/1200 -> 0.01 | G52: =100-F52 -> 
A53: 0 | E53: =E52+12/1200 -> 0.02
A54: 0 | E54: 0.03
A55: 0 | E55: 0.04
A56: 0 | E56: 0.05
A57: 0 | E57: 0.06
A58: 0 | E58: 0.07
A59: 0 | E59: 0.08
A60: 0 | E60: 0.09
A61: 0 | E61: 0.1
A62: 0 | E62: 0.11
A63: 0 | E63: 0.12
A64: 0 | E64: 0.13
A65: 0 | E65: 0.14
A66: 0 | E66: 0.15
A67: 0 | E67: 0.16
A68: 0 | E68: 0.17
A69: 0 | E69: 0.18
A70: 0 | E70: 0.19
A71: 0 | E71: 0.2
A72: 0 | E72: 0.21
A73: 0 | E73: 0.22
A74: 0 | E74: 0.23
A75: 0 | E75: 0.24
A76: 0 | E76: 0.25
A77: 0 | E77: 0.26
A78: 0 | E78: 0.27
A79: 0 | E79: 0.28
A80: 0 | E80: 0.29
A81: 0 | E81: 0.3
A82: 0 | E82: 0.31
A83: 0 | E83: 0.32
A84: 0 | E84: 0.33
A85: 0 | E85: 0.34
A86: 0 | E86: 0.35
A87: 0 | E87: 0.36
A88: 0 | E88: 0.37
A89: 0 | E89: 0.38
A90: 0 | E90: 0.39
A91: 0 | E91: 0.4
A92: 0 | E92: 0.41
A93: 0 | E93: 0.42
A94: 0 | E94: 0.43
A95: 0 | E95: 0.44
A96: 0 | E96: 0.45
A97: 0 | E97: 0.46
A98: 0 | E98: 0.47
A99: 0 | E99: 0.48
A100: 0 | E100: 0.49
A101: 0 | E101: 0.5
A102: 0 | E102: 0.51
A103: 0 | E103: 0.52
A104: 0 | E104: 0.53
A105: 0 | E105: 0.54
A106: 0 | E106: 0.55
A107: 0 | E107: 0.56
A108: 0 | E108: 0.57
A109: 0 | E109: 0.58
A110: 0 | E110: 0.59
A111: 0 | E111: 0.6
A112: 0 | E112: 0.61
A113: 0 | E113: 0.62
A114: 0 | E114: 0.63
A115: =MIN(AD$15,E115) -> 0 | B115: =MIN(C$47,F115) ->  | E115: 0.64 | F115: =((C$11)/((10^(-E115))+(C$11)))*100 -> 
A116: 0 | C116: =100-B116 ->  | E116: 0.65 | G116: =100-F116 -> 
A117: 0 | E117: =E116+12/1200 -> 0.66
A118: 0 | E118: 0.67
A119: 0 | E119: 0.68
A120: 0 | E120: 0.69
A121: 0 | E121: 0.7
A122: 0 | E122: 0.71
A123: 0 | E123: 0.72
A124: 0 | E124: 0.73
A125: 0 | E125: 0.74
A126: 0 | E126: 0.75
A127: 0 | E127: 0.76
A128: 0 | E128: 0.77
A129: 0 | E129: 0.78
A130: 0 | E130: 0.79
A131: 0 | E131: 0.8
A132: 0 | E132: 0.81
A133: 0 | E133: 0.82
A134: 0 | E134: 0.83
A135: 0 | E135: 0.84
A136: 0 | E136: 0.85
A137: 0 | E137: 0.86
A138: 0 | E138: 0.87
A139: 0 | E139: 0.88
A140: 0 | E140: 0.89
A141: 0 | E141: 0.9
A142: 0 | E142: 0.91
A143: 0 | E143: 0.92
A144: 0 | E144: 0.93
A145: 0 | E145: 0.94
A146: 0 | E146: 0.95
A147: 0 | E147: 0.96
A148: 0 | E148: 0.97
A149: 0 | E149: 0.98
A150: 0 | E150: 0.99
A151: 0 | E151: 1
A152: 0 | E152: 1.01
A153: 0 | E153: 1.02
A154: 0 | E154: 1.03
A155: 0 | E155: 1.04
A156: 0 | E156: 1.05
A157: 0 | E157: 1.06
A158: 0 | E158: 1.07
A159: 0 | E159: 1.08
A160: 0 | E160: 1.09
A161: 0 | E161: 1.1
A162: 0 | E162: 1.11
A163: 0 | E163: 1.12
A164: 0 | E164: 1.13
A165: 0 | E165: 1.14
A166: 0 | E166: 1.15
A167: 0 | E167: 1.16
A168: 0 | E168: 1.17
A169: 0 | E169: 1.18
A170: 0 | E170: 1.19
A171: 0 | E171: 1.2
A172: 0 | E172: 1.21
A173: 0 | E173: 1.22
A174: 0 | E174: 1.23
A175: 0 | E175: 1.24
A176: 0 | E176: 1.25
A177: 0 | E177: 1.26
A178: 0 | E178: 1.27
A179: =MIN(AD$15,E179) -> 0 | B179: =MIN(C$47,F179) ->  | E179: 1.28 | F179: =((C$11)/((10^(-E179))+(C$11)))*100 -> 
A180: 0 | C180: =100-B180 ->  | E180: 1.29 | G180: =100-F180 -> 
A181: 0 | E181: =E180+12/1200 -> 1.3
A182: 0 | E182: 1.31
A183: 0 | E183: 1.32
A184: 0 | E184: 1.33
A185: 0 | E185: 1.34
A186: 0 | E186: 1.35
A187: 0 | E187: 1.36
A188: 0 | E188: 1.37
A189: 0 | E189: 1.38
A190: 0 | E190: 1.39
A191: 0 | E191: 1.4
A192: 0 | E192: 1.41
A193: 0 | E193: 1.42
A194: 0 | E194: 1.43
A195: 0 | E195: 1.44
A196: 0 | E196: 1.45
A197: 0 | E197: 1.46
A198: 0 | E198: 1.47
A199: 0 | E199: 1.48
A200: 0 | E200: 1.49
A201: 0 | E201: 1.5
A202: 0 | E202: 1.51
A203: 0 | E203: 1.52
A204: 0 | E204: 1.53
A205: 0 | E205: 1.54
A206: 0 | E206: 1.55
A207: 0 | E207: 1.56
A208: 0 | E208: 1.57
A209: 0 | E209: 1.58
A210: 0 | E210: 1.59
A211: 0 | E211: 1.6
A212: 0 | E212: 1.61
A213: 0 | E213: 1.62
A214: 0 | E214: 1.63
... 1037 more rows

Sheet IMPRESSION
AF5: =IF(C$5=0,"",IF(C$5=1,AJ$7,IF(C$5=2,AJ$8,IF(C$5=3,AJ$9,IF(C$5=4,AJ$10))))) -> 
O6: innovsciences
AD7: Solution d'acide fluorhydrique | AI7: 3.2 | AJ7: HF/F-
E8: =AF5 ->  | AD8: Solution d'acide éthanoïque | AI8: 4.75 | AJ8: CH3COOH/CH3COO-
AD9: Solution d'hypochlorite de sodium | AI9: 7.5 | AJ9: HClO/ClO-
AD10: Solution d'ammoniac | AI10: 9.25 | AJ10: NH4+/NH3
AD12: Play | AH12: Pas
Y13: =AD$13/5 -> 0.0062 | Z13: =AD$13/200 -> 0.000155 | AA13: =AD$13/10000 -> 3.1e-06 | AB13: =AD$13/500 -> 6.2e-05 | AD13: 0.031 | AE13: =MIN(0.01*AD$13,0.001) -> 0.00031 | AF13: =MAX(AD$13,0.05) -> 0.05 | AH13: =0.001 -> 0.001
AD15: 7.75 | AE15: =MIN(AD$15,AF$15) -> 7.75 | AF15: =MAX(AD$15,12) -> 12 | AH15: =0.25 -> 0.25
AD17: calcul de pH solution acide
AD18: a | AF18: b | AH18: c | AK18: 5
AK19: Ka
AD20: =AK$20 ->  | AF20: =-(AK$20*H$12+D$11) ->  | AH20: =-AK$20*D$11 ->  | AK20: =IF(C$5=0,"",IF(C$5=1,C$11,IF(C$5=2,C11,IF(C$5=3,"",IF(C$5=4,""))))) -> 
AD21: L | AE21: M | AF21: S | AG21: P | AH21: r | AI21: j
E22: =IF(INTERFACE!C$5=1,INTERFACE!AD$7,IF(INTERFACE!C$5=2,INTERFACE!AD$8,IF(INTERFACE!C$5=3,INTERFACE!AD$9,IF(INTERFACE!C$5=4,INTERFACE!AD$10)))) -> FALSE | J22: pKa = | K22: =IF(INTERFACE!C$5=1,INTERFACE!AI$7,IF(INTERFACE!C$5=2,INTERFACE!AI$8,IF(INTERFACE!C$5=3,INTERFACE!AI$9,IF(INTERFACE!C$5=4,INTERFACE!AI$10)))) -> FALSE | AD22: =AF$20-AD$20^2/3 ->  | AE22: =(2*AD$20^3/27)-(AD$20*AF$20/3)+(AH$20) ->  | AF22: =-AE$22 ->  | AG22: =-AD$22^3/27 ->  | AH22: =SQRT(AG$22) ->  | AI22: =ACOS(0.5*AF$22/AH$22) -> 
AD24: [H3O+] | AE24: pH | AF24: D
AD25: =2*SQRT(-AD$22/3)*COS(AI$22/3)-C$11/3 ->  | AE25: =-LOG(AD$25) ->  | AF25: =AF$22^2-(4*AG$22) -> 
AD28: calcul de pH solution basique
AD29: a | AF29: b | AH29: c | AK29: Kb
AK30: =IF(C$5=0,"",IF(C$5=1,"",IF(C$5=2,"",IF(C$5=3,D$11/C$11,IF(C$5=4,D$11/C$11))))) -> 
AD31: =AK$30 ->  | AF31: =-(AK$30*H$12+D$11) ->  | AH31: =-AK$30*D$11 -> 
AD32: L | AE32: M | AF32: S | AG32: P | AH32: r | AI32: j
AD33: =AF$31-AD$31^2/3 ->  | AE33: =(2*AD$31^3/27)-(AD$31*AF$31/3)+(AH$31) ->  | AF33: =-AE$33 ->  | AG33: =-AD$33^3/27 ->  | AH33: =SQRT(AG$33) ->  | AI33: =ACOS(0.5*AF$33/AH$33) -> 
B35: pH vari | C35: [ A- ] % | D35: [HA ] % | AD35: [H3O+] | AE35: pH | AF35: D
B36: =MAX(INTERFACE!AE$15,INTERFACE!E51) -> 0 | C36: =((INTERFACE!C$11)/((10^-(INTERFACE!B47))+(INTERFACE!C$11)))*100 ->  | D36: =100-INTERFACE!C47 ->  | AD36: =((2*SQRT(-AD$33/3)*COS(AI$33/3)-AK$30/3)^-1)*D$11 ->  | AE36: =-LOG(AD$36) ->  | AF36: =AF$33^2-(4*AG$33) -> 
A39: pH | B39: [ A- ] % | C39: [HA ] % | E39: pH inter | F39: [ A- ] % | G39: [HA ] % | I39: intersection | K39: [ A- ] % | M39: [HA ] %
A40: =(MIN(INTERFACE!AD$15,INTERFACE!E51)) -> 0 | B40: =MIN(INTERFACE!C$47,INTERFACE!F51) ->  | C40: =100-INTERFACE!B51 ->  | E40: 0 | F40: =((INTERFACE!C$11)/((10^-(INTERFACE!E51))+(INTERFACE!C$11)))*100 ->  | G40: =100-INTERFACE!F51 ->  | I40: =IF(INTERFACE!B$47<INTERFACE!B$11,"",IF(INTERFACE!B$47>=INTERFACE!B$11,INTERFACE!B$11)) ->  | J40: =IF(INTERFACE!B$47<INTERFACE!B$11,"",IF(INTERFACE!B$47>=INTERFACE!B$11,0)) ->  | K40: =INTERFACE!B$47 -> 0 | L40: =INTERFACE!C$47 ->  | M40: =INTERFACE!B$47 -> 0 | N40: =INTERFACE!D$47 -> 
A41: =(MIN(INTERFACE!AD$15,INTERFACE!E52)) -> 0 | B41: =MIN(INTERFACE!C$47,INTERFACE!F52) ->  | C41: =100-INTERFACE!B52 ->  | E41: =INTERFACE!E51+12/1200 -> 0.01 | F41: =((INTERFACE!C$11)/((10^-(INTERFACE!E52))+(INTERFACE!C$11)))*100 ->  | G41: =100-INTERFACE!F52 ->  | I41: =IF(INTERFACE!B$47<INTERFACE!B$11,"",IF(INTERFACE!B$47>=INTERFACE!B$11,INTERFACE!B$11)) ->  | J41: =IF(INTERFACE!B$47<INTERFACE!B$11,"",IF(INTERFACE!B$47>=INTERFACE!B$11,50)) ->  | K41: =INTERFACE!B$47 -> 0 | L41: 0 | M41: =INTERFACE!B$47 -> 0 | N41: 0
A42: =(MIN(INTERFACE!AD$15,INTERFACE!E53)) -> 0 | B42: =MIN(INTERFACE!C$47,INTERFACE!F53) ->  | C42: =100-INTERFACE!B53 ->  | E42: =INTERFACE!E52+12/1200 -> 0.02 | F42: =((INTERFACE!C$11)/((10^-(INTERFACE!E53))+(INTERFACE!C$11)))*100 ->  | G42: =100-INTERFACE!F53 ->  | I42: =IF(INTERFACE!B$47<INTERFACE!B$11,"",IF(INTERFACE!B$47>=INTERFACE!B$11,0)) ->  | J42: =IF(INTERFACE!B$47<INTERFACE!B$11,"",IF(INTERFACE!B$47>=INTERFACE!B$11,50)) -> 
A43: =(MIN(INTERFACE!AD$15,INTERFACE!E54)) -> 0 | B43: =MIN(INTERFACE!C$47,INTERFACE!F54) ->  | C43: =100-INTERFACE!B54 ->  | E43: =INTERFACE!E53+12/1200 -> 0.03 | F43: =((INTERFACE!C$11)/((10^-(INTERFACE!E54))+(INTERFACE!C$11)))*100 ->  | G43: =100-INTERFACE!F54 -> 
A44: =(MIN(INTERFACE!AD$15,INTERFACE!E55)) -> 0 | B44: =MIN(INTERFACE!C$47,INTERFACE!F55) ->  | C44: =100-INTERFACE!B55 ->  | E44: =INTERFACE!E54+12/1200 -> 0.04 | F44: =((INTERFACE!C$11)/((10^-(INTERFACE!E55))+(INTERFACE!C$11)))*100 ->  | G44: =100-INTERFACE!F55 -> 
A45: =(MIN(INTERFACE!AD$15,INTERFACE!E56)) -> 0 | B45: =MIN(INTERFACE!C$47,INTERFACE!F56) ->  | C45: =100-INTERFACE!B56 ->  | E45: =INTERFACE!E55+12/1200 -> 0.05 | F45: =((INTERFACE!C$11)/((10^-(INTERFACE!E56))+(INTERFACE!C$11)))*100 ->  | G45: =100-INTERFACE!F56 -> 
A46: =(MIN(INTERFACE!AD$15,INTERFACE!E57)) -> 0 | B46: =MIN(INTERFACE!C$47,INTERFACE!F57) ->  | C46: =100-INTERFACE!B57 ->  | E46: =INTERFACE!E56+12/1200 -> 0.06 | F46: =((INTERFACE!C$11)/((10^-(INTERFACE!E57))+(INTERFACE!C$11)))*100 ->  | G46: =100-INTERFACE!F57 -> 
A47: =(MIN(INTERFACE!AD$15,INTERFACE!E58)) -> 0 | B47: =MIN(INTERFACE!C$47,INTERFACE!F58) ->  | C47: =100-INTERFACE!B58 ->  | E47: =INTERFACE!E57+12/1200 -> 0.07 | F47: =((INTERFACE!C$11)/((10^-(INTERFACE!E58))+(INTERFACE!C$11)))*100 ->  | G47: =100-INTERFACE!F58 -> 
A48: =(MIN(INTERFACE!AD$15,INTERFACE!E59)) -> 0 | B48: =MIN(INTERFACE!C$47,INTERFACE!F59) ->  | C48: =100-INTERFACE!B59 ->  | E48: =INTERFACE!E58+12/1200 -> 0.08 | F48: =((INTERFACE!C$11)/((10^-(INTERFACE!E59))+(INTERFACE!C$11)))*100 ->  | G48: =100-INTERFACE!F59 -> 
A49: =(MIN(INTERFACE!AD$15,INTERFACE!E60)) -> 0 | B49: =MIN(INTERFACE!C$47,INTERFACE!F60) ->  | C49: =100-INTERFACE!B60 ->  | E49: =INTERFACE!E59+12/1200 -> 0.09 | F49: =((INTERFACE!C$11)/((10^-(INTERFACE!E60))+(INTERFACE!C$11)))*100 ->  | G49: =100-INTERFACE!F60 -> 
A50: =(MIN(INTERFACE!AD$15,INTERFACE!E61)) -> 0 | B50: =MIN(INTERFACE!C$47,INTERFACE!F61) ->  | C50: =100-INTERFACE!B61 ->  | E50: =INTERFACE!E60+12/1200 -> 0.1 | F50: =((INTERFACE!C$11)/((10^-(INTERFACE!E61))+(INTERFACE!C$11)))*100 ->  | G50: =100-INTERFACE!F61 -> 
A51: =(MIN(INTERFACE!AD$15,INTERFACE!E62)) -> 0 | B51: =MIN(INTERFACE!C$47,INTERFACE!F62) ->  | C51: =100-INTERFACE!B62 ->  | E51: =INTERFACE!E61+12/1200 -> 0.11 | F51: =((INTERFACE!C$11)/((10^-(INTERFACE!E62))+(INTERFACE!C$11)))*100 ->  | G51: =100-INTERFACE!F62 -> 
A52: =(MIN(INTERFACE!AD$15,INTERFACE!E63)) -> 0 | B52: =MIN(INTERFACE!C$47,INTERFACE!F63) ->  | C52: =100-INTERFACE!B63 ->  | E52: =INTERFACE!E62+12/1200 -> 0.12 | F52: =((INTERFACE!C$11)/((10^-(INTERFACE!E63))+(INTERFACE!C$11)))*100 ->  | G52: =100-INTERFACE!F63 -> 
A53: =(MIN(INTERFACE!AD$15,INTERFACE!E64)) -> 0 | B53: =MIN(INTERFACE!C$47,INTERFACE!F64) ->  | C53: =100-INTERFACE!B64 ->  | E53: =INTERFACE!E63+12/1200 -> 0.13 | F53: =((INTERFACE!C$11)/((10^-(INTERFACE!E64))+(INTERFACE!C$11)))*100 ->  | G53: =100-INTERFACE!F64 -> 
A54: =(MIN(INTERFACE!AD$15,INTERFACE!E65)) -> 0 | B54: =MIN(INTERFACE!C$47,INTERFACE!F65) ->  | C54: =100-INTERFACE!B65 ->  | E54: =INTERFACE!E64+12/1200 -> 0.14 | F54: =((INTERFACE!C$11)/((10^-(INTERFACE!E65))+(INTERFACE!C$11)))*100 ->  | G54: =100-INTERFACE!F65 -> 
A55: =(MIN(INTERFACE!AD$15,INTERFACE!E66)) -> 0 | B55: =MIN(INTERFACE!C$47,INTERFACE!F66) ->  | C55: =100-INTERFACE!B66 ->  | E55: =INTERFACE!E65+12/1200 -> 0.15 | F55: =((INTERFACE!C$11)/((10^-(INTERFACE!E66))+(INTERFACE!C$11)))*100 ->  | G55: =100-INTERFACE!F66 -> 
A56: =(MIN(INTERFACE!AD$15,INTERFACE!E67)) -> 0 | B56: =MIN(INTERFACE!C$47,INTERFACE!F67) ->  | C56: =100-INTERFACE!B67 ->  | E56: =INTERFACE!E66+12/1200 -> 0.16 | F56: =((INTERFACE!C$11)/((10^-(INTERFACE!E67))+(INTERFACE!C$11)))*100 ->  | G56: =100-INTERFACE!F67 -> 
A57: =(MIN(INTERFACE!AD$15,INTERFACE!E68)) -> 0 | B57: =MIN(INTERFACE!C$47,INTERFACE!F68) ->  | C57: =100-INTERFACE!B68 ->  | E57: =INTERFACE!E67+12/1200 -> 0.17 | F57: =((INTERFACE!C$11)/((10^-(INTERFACE!E68))+(INTERFACE!C$11)))*100 ->  | G57: =100-INTERFACE!F68 -> 
A58: =(MIN(INTERFACE!AD$15,INTERFACE!E69)) -> 0 | B58: =MIN(INTERFACE!C$47,INTERFACE!F69) ->  | C58: =100-INTERFACE!B69 ->  | E58: =INTERFACE!E68+12/1200 -> 0.18 | F58: =((INTERFACE!C$11)/((10^-(INTERFACE!E69))+(INTERFACE!C$11)))*100 ->  | G58: =100-INTERFACE!F69 -> 
A59: =(MIN(INTERFACE!AD$15,INTERFACE!E70)) -> 0 | B59: =MIN(INTERFACE!C$47,INTERFACE!F70) ->  | C59: =100-INTERFACE!B70 ->  | E59: =INTERFACE!E69+12/1200 -> 0.19 | F59: =((INTERFACE!C$11)/((10^-(INTERFACE!E70))+(INTERFACE!C$11)))*100 ->  | G59: =100-INTERFACE!F70 -> 
A60: =(MIN(INTERFACE!AD$15,INTERFACE!E71)) -> 0 | B60: =MIN(INTERFACE!C$47,INTERFACE!F71) ->  | C60: =100-INTERFACE!B71 ->  | E60: =INTERFACE!E70+12/1200 -> 0.2 | F60: =((INTERFACE!C$11)/((10^-(INTERFACE!E71))+(INTERFACE!C$11)))*100 ->  | G60: =100-INTERFACE!F71 -> 
A61: =(MIN(INTERFACE!AD$15,INTERFACE!E72)) -> 0 | B61: =MIN(INTERFACE!C$47,INTERFACE!F72) ->  | C61: =100-INTERFACE!B72 ->  | E61: =INTERFACE!E71+12/1200 -> 0.21 | F61: =((INTERFACE!C$11)/((10^-(INTERFACE!E72))+(INTERFACE!C$11)))*100 ->  | G61: =100-INTERFACE!F72 -> 
A62: =(MIN(INTERFACE!AD$15,INTERFACE!E73)) -> 0 | B62: =MIN(INTERFACE!C$47,INTERFACE!F73) ->  | C62: =100-INTERFACE!B73 ->  | E62: =INTERFACE!E72+12/1200 -> 0.22 | F62: =((INTERFACE!C$11)/((10^-(INTERFACE!E73))+(INTERFACE!C$11)))*100 ->  | G62: =100-INTERFACE!F73 -> 
A63: =(MIN(INTERFACE!AD$15,INTERFACE!E74)) -> 0 | B63: =MIN(INTERFACE!C$47,INTERFACE!F74) ->  | C63: =100-INTERFACE!B74 ->  | E63: =INTERFACE!E73+12/1200 -> 0.23 | F63: =((INTERFACE!C$11)/((10^-(INTERFACE!E74))+(INTERFACE!C$11)))*100 ->  | G63: =100-INTERFACE!F74 -> 
A64: =(MIN(INTERFACE!AD$15,INTERFACE!E75)) -> 0 | B64: =MIN(INTERFACE!C$47,INTERFACE!F75) ->  | C64: =100-INTERFACE!B75 ->  | E64: =INTERFACE!E74+12/1200 -> 0.24 | F64: =((INTERFACE!C$11)/((10^-(INTERFACE!E75))+(INTERFACE!C$11)))*100 ->  | G64: =100-INTERFACE!F75 -> 
A65: =(MIN(INTERFACE!AD$15,INTERFACE!E76)) -> 0 | B65: =MIN(INTERFACE!C$47,INTERFACE!F76) ->  | C65: =100-INTERFACE!B76 ->  | E65: =INTERFACE!E75+12/1200 -> 0.25 | F65: =((INTERFACE!C$11)/((10^-(INTERFACE!E76))+(INTERFACE!C$11)))*100 ->  | G65: =100-INTERFACE!F76 -> 
A66: =(MIN(INTERFACE!AD$15,INTERFACE!E77)) -> 0 | B66: =MIN(INTERFACE!C$47,INTERFACE!F77) ->  | C66: =100-INTERFACE!B77 ->  | E66: =INTERFACE!E76+12/1200 -> 0.26 | F66: =((INTERFACE!C$11)/((10^-(INTERFACE!E77))+(INTERFACE!C$11)))*100 ->  | G66: =100-INTERFACE!F77 -> 
A67: =(MIN(INTERFACE!AD$15,INTERFACE!E78)) -> 0 | B67: =MIN(INTERFACE!C$47,INTERFACE!F78) ->  | C67: =100-INTERFACE!B78 ->  | E67: =INTERFACE!E77+12/1200 -> 0.27 | F67: =((INTERFACE!C$11)/((10^-(INTERFACE!E78))+(INTERFACE!C$11)))*100 ->  | G67: =100-INTERFACE!F78 -> 
A68: =(MIN(INTERFACE!AD$15,INTERFACE!E79)) -> 0 | B68: =MIN(INTERFACE!C$47,INTERFACE!F79) ->  | C68: =100-INTERFACE!B79 ->  | E68: =INTERFACE!E78+12/1200 -> 0.28 | F68: =((INTERFACE!C$11)/((10^-(INTERFACE!E79))+(INTERFACE!C$11)))*100 ->  | G68: =100-INTERFACE!F79 -> 
A69: =(MIN(INTERFACE!AD$15,INTERFACE!E80)) -> 0 | B69: =MIN(INTERFACE!C$47,INTERFACE!F80) ->  | C69: =100-INTERFACE!B80 ->  | E69: =INTERFACE!E79+12/1200 -> 0.29 | F69: =((INTERFACE!C$11)/((10^-(INTERFACE!E80))+(INTERFACE!C$11)))*100 ->  | G69: =100-INTERFACE!F80 -> 
A70: =(MIN(INTERFACE!AD$15,INTERFACE!E81)) -> 0 | B70: =MIN(INTERFACE!C$47,INTERFACE!F81) ->  | C70: =100-INTERFACE!B81 ->  | E70: =INTERFACE!E80+12/1200 -> 0.3 | F70: =((INTERFACE!C$11)/((10^-(INTERFACE!E81))+(INTERFACE!C$11)))*100 ->  | G70: =100-INTERFACE!F81 -> 
A71: =(MIN(INTERFACE!AD$15,INTERFACE!E82)) -> 0 | B71: =MIN(INTERFACE!C$47,INTERFACE!F82) ->  | C71: =100-INTERFACE!B82 ->  | E71: =INTERFACE!E81+12/1200 -> 0.31 | F71: =((INTERFACE!C$11)/((10^-(INTERFACE!E82))+(INTERFACE!C$11)))*100 ->  | G71: =100-INTERFACE!F82 -> 
A72: =(MIN(INTERFACE!AD$15,INTERFACE!E83)) -> 0 | B72: =MIN(INTERFACE!C$47,INTERFACE!F83) ->  | C72: =100-INTERFACE!B83 ->  | E72: =INTERFACE!E82+12/1200 -> 0.32 | F72: =((INTERFACE!C$11)/((10^-(INTERFACE!E83))+(INTERFACE!C$11)))*100 ->  | G72: =100-INTERFACE!F83 -> 
A73: =(MIN(INTERFACE!AD$15,INTERFACE!E84)) -> 0 | B73: =MIN(INTERFACE!C$47,INTERFACE!F84) ->  | C73: =100-INTERFACE!B84 ->  | E73: =INTERFACE!E83+12/1200 -> 0.33 | F73: =((INTERFACE!C$11)/((10^-(INTERFACE!E84))+(INTERFACE!C$11)))*100 ->  | G73: =100-INTERFACE!F84 -> 
A74: =(MIN(INTERFACE!AD$15,INTERFACE!E85)) -> 0 | B74: =MIN(INTERFACE!C$47,INTERFACE!F85) ->  | C74: =100-INTERFACE!B85 ->  | E74: =INTERFACE!E84+12/1200 -> 0.34 | F74: =((INTERFACE!C$11)/((10^-(INTERFACE!E85))+(INTERFACE!C$11)))*100 ->  | G74: =100-INTERFACE!F85 -> 
A75: =(MIN(INTERFACE!AD$15,INTERFACE!E86)) -> 0 | B75: =MIN(INTERFACE!C$47,INTERFACE!F86) ->  | C75: =100-INTERFACE!B86 ->  | E75: =INTERFACE!E85+12/1200 -> 0.35 | F75: =((INTERFACE!C$11)/((10^-(INTERFACE!E86))+(INTERFACE!C$11)))*100 ->  | G75: =100-INTERFACE!F86 -> 
A76: =(MIN(INTERFACE!AD$15,INTERFACE!E87)) -> 0 | B76: =MIN(INTERFACE!C$47,INTERFACE!F87) ->  | C76: =100-INTERFACE!B87 ->  | E76: =INTERFACE!E86+12/1200 -> 0.36 | F76: =((INTERFACE!C$11)/((10^-(INTERFACE!E87))+(INTERFACE!C$11)))*100 ->  | G76: =100-INTERFACE!F87 -> 
A77: =(MIN(INTERFACE!AD$15,INTERFACE!E88)) -> 0 | B77: =MIN(INTERFACE!C$47,INTERFACE!F88) ->  | C77: =100-INTERFACE!B88 ->  | E77: =INTERFACE!E87+12/1200 -> 0.37 | F77: =((INTERFACE!C$11)/((10^-(INTERFACE!E88))+(INTERFACE!C$11)))*100 ->  | G77: =100-INTERFACE!F88 -> 
A78: =(MIN(INTERFACE!AD$15,INTERFACE!E89)) -> 0 | B78: =MIN(INTERFACE!C$47,INTERFACE!F89) ->  | C78: =100-INTERFACE!B89 ->  | E78: =INTERFACE!E88+12/1200 -> 0.38 | F78: =((INTERFACE!C$11)/((10^-(INTERFACE!E89))+(INTERFACE!C$11)))*100 ->  | G78: =100-INTERFACE!F89 -> 
A79: =(MIN(INTERFACE!AD$15,INTERFACE!E90)) -> 0 | B79: =MIN(INTERFACE!C$47,INTERFACE!F90) ->  | C79: =100-INTERFACE!B90 ->  | E79: =INTERFACE!E89+12/1200 -> 0.39 | F79: =((INTERFACE!C$11)/((10^-(INTERFACE!E90))+(INTERFACE!C$11)))*100 ->  | G79: =100-INTERFACE!F90 -> 
A80: =(MIN(INTERFACE!AD$15,INTERFACE!E91)) -> 0 | B80: =MIN(INTERFACE!C$47,INTERFACE!F91) ->  | C80: =100-INTERFACE!B91 ->  | E80: =INTERFACE!E90+12/1200 -> 0.4 | F80: =((INTERFACE!C$11)/((10^-(INTERFACE!E91))+(INTERFACE!C$11)))*100 ->  | G80: =100-INTERFACE!F91 -> 
A81: =(MIN(INTERFACE!AD$15,INTERFACE!E92)) -> 0 | B81: =MIN(INTERFACE!C$47,INTERFACE!F92) ->  | C81: =100-INTERFACE!B92 ->  | E81: =INTERFACE!E91+12/1200 -> 0.41 | F81: =((INTERFACE!C$11)/((10^-(INTERFACE!E92))+(INTERFACE!C$11)))*100 ->  | G81: =100-INTERFACE!F92 -> 
A82: =(MIN(INTERFACE!AD$15,INTERFACE!E93)) -> 0 | B82: =MIN(INTERFACE!C$47,INTERFACE!F93) ->  | C82: =100-INTERFACE!B93 ->  | E82: =INTERFACE!E92+12/1200 -> 0.42 | F82: =((INTERFACE!C$11)/((10^-(INTERFACE!E93))+(INTERFACE!C$11)))*100 ->  | G82: =100-INTERFACE!F93 -> 
A83: =(MIN(INTERFACE!AD$15,INTERFACE!E94)) -> 0 | B83: =MIN(INTERFACE!C$47,INTERFACE!F94) ->  | C83: =100-INTERFACE!B94 ->  | E83: =INTERFACE!E93+12/1200 -> 0.43 | F83: =((INTERFACE!C$11)/((10^-(INTERFACE!E94))+(INTERFACE!C$11)))*100 ->  | G83: =100-INTERFACE!F94 -> 
A84: =(MIN(INTERFACE!AD$15,INTERFACE!E95)) -> 0 | B84: =MIN(INTERFACE!C$47,INTERFACE!F95) ->  | C84: =100-INTERFACE!B95 ->  | E84: =INTERFACE!E94+12/1200 -> 0.44 | F84: =((INTERFACE!C$11)/((10^-(INTERFACE!E95))+(INTERFACE!C$11)))*100 ->  | G84: =100-INTERFACE!F95 -> 
A85: =(MIN(INTERFACE!AD$15,INTERFACE!E96)) -> 0 | B85: =MIN(INTERFACE!C$47,INTERFACE!F96) ->  | C85: =100-INTERFACE!B96 ->  | E85: =INTERFACE!E95+12/1200 -> 0.45 | F85: =((INTERFACE!C$11)/((10^-(INTERFACE!E96))+(INTERFACE!C$11)))*100 ->  | G85: =100-INTERFACE!F96 -> 
A86: =(MIN(INTERFACE!AD$15,INTERFACE!E97)) -> 0 | B86: =MIN(INTERFACE!C$47,INTERFACE!F97) ->  | C86: =100-INTERFACE!B97 ->  | E86: =INTERFACE!E96+12/1200 -> 0.46 | F86: =((INTERFACE!C$11)/((10^-(INTERFACE!E97))+(INTERFACE!C$11)))*100 ->  | G86: =100-INTERFACE!F97 -> 
A87: =(MIN(INTERFACE!AD$15,INTERFACE!E98)) -> 0 | B87: =MIN(INTERFACE!C$47,INTERFACE!F98) ->  | C87: =100-INTERFACE!B98 ->  | E87: =INTERFACE!E97+12/1200 -> 0.47 | F87: =((INTERFACE!C$11)/((10^-(INTERFACE!E98))+(INTERFACE!C$11)))*100 ->  | G87: =100-INTERFACE!F98 -> 
A88: =(MIN(INTERFACE!AD$15,INTERFACE!E99)) -> 0 | B88: =MIN(INTERFACE!C$47,INTERFACE!F99) ->  | C88: =100-INTERFACE!B99 ->  | E88: =INTERFACE!E98+12/1200 -> 0.48 | F88: =((INTERFACE!C$11)/((10^-(INTERFACE!E99))+(INTERFACE!C$11)))*100 ->  | G88: =100-INTERFACE!F99 -> 
A89: =(MIN(INTERFACE!AD$15,INTERFACE!E100)) -> 0 | B89: =MIN(INTERFACE!C$47,INTERFACE!F100) ->  | C89: =100-INTERFACE!B100 ->  | E89: =INTERFACE!E99+12/1200 -> 0.49 | F89: =((INTERFACE!C$11)/((10^-(INTERFACE!E100))+(INTERFACE!C$11)))*100 ->  | G89: =100-INTERFACE!F100 -> 
A90: =(MIN(INTERFACE!AD$15,INTERFACE!E101)) -> 0 | B90: =MIN(INTERFACE!C$47,INTERFACE!F101) ->  | C90: =100-INTERFACE!B101 ->  | E90: =INTERFACE!E100+12/1200 -> 0.5 | F90: =((INTERFACE!C$11)/((10^-(INTERFACE!E101))+(INTERFACE!C$11)))*100 ->  | G90: =100-INTERFACE!F101 -> 
A91: =(MIN(INTERFACE!AD$15,INTERFACE!E102)) -> 0 | B91: =MIN(INTERFACE!C$47,INTERFACE!F102) ->  | C91: =100-INTERFACE!B102 ->  | E91: =INTERFACE!E101+12/1200 -> 0.51 | F91: =((INTERFACE!C$11)/((10^-(INTERFACE!E102))+(INTERFACE!C$11)))*100 ->  | G91: =100-INTERFACE!F102 -> 
A92: =(MIN(INTERFACE!AD$15,INTERFACE!E103)) -> 0 | B92: =MIN(INTERFACE!C$47,INTERFACE!F103) ->  | C92: =100-INTERFACE!B103 ->  | E92: =INTERFACE!E102+12/1200 -> 0.52 | F92: =((INTERFACE!C$11)/((10^-(INTERFACE!E103))+(INTERFACE!C$11)))*100 ->  | G92: =100-INTERFACE!F103 -> 
A93: =(MIN(INTERFACE!AD$15,INTERFACE!E104)) -> 0 | B93: =MIN(INTERFACE!C$47,INTERFACE!F104) ->  | C93: =100-INTERFACE!B104 ->  | E93: =INTERFACE!E103+12/1200 -> 0.53 | F93: =((INTERFACE!C$11)/((10^-(INTERFACE!E104))+(INTERFACE!C$11)))*100 ->  | G93: =100-INTERFACE!F104 -> 
A94: =(MIN(INTERFACE!AD$15,INTERFACE!E105)) -> 0 | B94: =MIN(INTERFACE!C$47,INTERFACE!F105) ->  | C94: =100-INTERFACE!B105 ->  | E94: =INTERFACE!E104+12/1200 -> 0.54 | F94: =((INTERFACE!C$11)/((10^-(INTERFACE!E105))+(INTERFACE!C$11)))*100 ->  | G94: =100-INTERFACE!F105 -> 
A95: =(MIN(INTERFACE!AD$15,INTERFACE!E106)) -> 0 | B95: =MIN(INTERFACE!C$47,INTERFACE!F106) ->  | C95: =100-INTERFACE!B106 ->  | E95: =INTERFACE!E105+12/1200 -> 0.55 | F95: =((INTERFACE!C$11)/((10^-(INTERFACE!E106))+(INTERFACE!C$11)))*100 ->  | G95: =100-INTERFACE!F106 -> 
A96: =(MIN(INTERFACE!AD$15,INTERFACE!E107)) -> 0 | B96: =MIN(INTERFACE!C$47,INTERFACE!F107) ->  | C96: =100-INTERFACE!B107 ->  | E96: =INTERFACE!E106+12/1200 -> 0.56 | F96: =((INTERFACE!C$11)/((10^-(INTERFACE!E107))+(INTERFACE!C$11)))*100 ->  | G96: =100-INTERFACE!F107 -> 
A97: =(MIN(INTERFACE!AD$15,INTERFACE!E108)) -> 0 | B97: =MIN(INTERFACE!C$47,INTERFACE!F108) ->  | C97: =100-INTERFACE!B108 ->  | E97: =INTERFACE!E107+12/1200 -> 0.57 | F97: =((INTERFACE!C$11)/((10^-(INTERFACE!E108))+(INTERFACE!C$11)))*100 ->  | G97: =100-INTERFACE!F108 -> 
A98: =(MIN(INTERFACE!AD$15,INTERFACE!E109)) -> 0 | B98: =MIN(INTERFACE!C$47,INTERFACE!F109) ->  | C98: =100-INTERFACE!B109 ->  | E98: =INTERFACE!E108+12/1200 -> 0.58 | F98: =((INTERFACE!C$11)/((10^-(INTERFACE!E109))+(INTERFACE!C$11)))*100 ->  | G98: =100-INTERFACE!F109 -> 
A99: =(MIN(INTERFACE!AD$15,INTERFACE!E110)) -> 0 | B99: =MIN(INTERFACE!C$47,INTERFACE!F110) ->  | C99: =100-INTERFACE!B110 ->  | E99: =INTERFACE!E109+12/1200 -> 0.59 | F99: =((INTERFACE!C$11)/((10^-(INTERFACE!E110))+(INTERFACE!C$11)))*100 ->  | G99: =100-INTERFACE!F110 -> 
A100: =(MIN(INTERFACE!AD$15,INTERFACE!E111)) -> 0 | B100: =MIN(INTERFACE!C$47,INTERFACE!F111) ->  | C100: =100-INTERFACE!B111 ->  | E100: =INTERFACE!E110+12/1200 -> 0.6 | F100: =((INTERFACE!C$11)/((10^-(INTERFACE!E111))+(INTERFACE!C$11)))*100 ->  | G100: =100-INTERFACE!F111 -> 
A101: =(MIN(INTERFACE!AD$15,INTERFACE!E112)) -> 0 | B101: =MIN(INTERFACE!C$47,INTERFACE!F112) ->  | C101: =100-INTERFACE!B112 ->  | E101: =INTERFACE!E111+12/1200 -> 0.61 | F101: =((INTERFACE!C$11)/((10^-(INTERFACE!E112))+(INTERFACE!C$11)))*100 ->  | G101: =100-INTERFACE!F112 -> 
A102: =(MIN(INTERFACE!AD$15,INTERFACE!E113)) -> 0 | B102: =MIN(INTERFACE!C$47,INTERFACE!F113) ->  | C102: =100-INTERFACE!B113 ->  | E102: =INTERFACE!E112+12/1200 -> 0.62 | F102: =((INTERFACE!C$11)/((10^-(INTERFACE!E113))+(INTERFACE!C$11)))*100 ->  | G102: =100-INTERFACE!F113 -> 
A103: =(MIN(INTERFACE!AD$15,INTERFACE!E114)) -> 0 | B103: =MIN(INTERFACE!C$47,INTERFACE!F114) ->  | C103: =100-INTERFACE!B114 ->  | E103: =INTERFACE!E113+12/1200 -> 0.63 | F103: =((INTERFACE!C$11)/((10^-(INTERFACE!E114))+(INTERFACE!C$11)))*100 ->  | G103: =100-INTERFACE!F114 -> 
A104: =(MIN(INTERFACE!AD$15,INTERFACE!E115)) -> 0 | B104: =MIN(INTERFACE!C$47,INTERFACE!F115) ->  | C104: =100-INTERFACE!B115 ->  | E104: =INTERFACE!E114+12/1200 -> 0.64 | F104: =((INTERFACE!C$11)/((10^-(INTERFACE!E115))+(INTERFACE!C$11)))*100 ->  | G104: =100-INTERFACE!F115 -> 
A105: =(MIN(INTERFACE!AD$15,INTERFACE!E116)) -> 0 | B105: =MIN(INTERFACE!C$47,INTERFACE!F116) ->  | C105: =100-INTERFACE!B116 ->  | E105: =INTERFACE!E115+12/1200 -> 0.65 | F105: =((INTERFACE!C$11)/((10^-(INTERFACE!E116))+(INTERFACE!C$11)))*100 ->  | G105: =100-INTERFACE!F116 -> 
A106: =(MIN(INTERFACE!AD$15,INTERFACE!E117)) -> 0 | B106: =MIN(INTERFACE!C$47,INTERFACE!F117) ->  | C106: =100-INTERFACE!B117 ->  | E106: =INTERFACE!E116+12/1200 -> 0.66 | F106: =((INTERFACE!C$11)/((10^-(INTERFACE!E117))+(INTERFACE!C$11)))*100 ->  | G106: =100-INTERFACE!F117 -> 
A107: =(MIN(INTERFACE!AD$15,INTERFACE!E118)) -> 0 | B107: =MIN(INTERFACE!C$47,INTERFACE!F118) ->  | C107: =100-INTERFACE!B118 ->  | E107: =INTERFACE!E117+12/1200 -> 0.67 | F107: =((INTERFACE!C$11)/((10^-(INTERFACE!E118))+(INTERFACE!C$11)))*100 ->  | G107: =100-INTERFACE!F118 -> 
A108: =(MIN(INTERFACE!AD$15,INTERFACE!E119)) -> 0 | B108: =MIN(INTERFACE!C$47,INTERFACE!F119) ->  | C108: =100-INTERFACE!B119 ->  | E108: =INTERFACE!E118+12/1200 -> 0.68 | F108: =((INTERFACE!C$11)/((10^-(INTERFACE!E119))+(INTERFACE!C$11)))*100 ->  | G108: =100-INTERFACE!F119 -> 
A109: =(MIN(INTERFACE!AD$15,INTERFACE!E120)) -> 0 | B109: =MIN(INTERFACE!C$47,INTERFACE!F120) ->  | C109: =100-INTERFACE!B120 ->  | E109: =INTERFACE!E119+12/1200 -> 0.69 | F109: =((INTERFACE!C$11)/((10^-(INTERFACE!E120))+(INTERFACE!C$11)))*100 ->  | G109: =100-INTERFACE!F120 -> 
A110: =(MIN(INTERFACE!AD$15,INTERFACE!E121)) -> 0 | B110: =MIN(INTERFACE!C$47,INTERFACE!F121) ->  | C110: =100-INTERFACE!B121 ->  | E110: =INTERFACE!E120+12/1200 -> 0.7 | F110: =((INTERFACE!C$11)/((10^-(INTERFACE!E121))+(INTERFACE!C$11)))*100 ->  | G110: =100-INTERFACE!F121 -> 
A111: =(MIN(INTERFACE!AD$15,INTERFACE!E122)) -> 0 | B111: =MIN(INTERFACE!C$47,INTERFACE!F122) ->  | C111: =100-INTERFACE!B122 ->  | E111: =INTERFACE!E121+12/1200 -> 0.71 | F111: =((INTERFACE!C$11)/((10^-(INTERFACE!E122))+(INTERFACE!C$11)))*100 ->  | G111: =100-INTERFACE!F122 -> 
A112: =(MIN(INTERFACE!AD$15,INTERFACE!E123)) -> 0 | B112: =MIN(INTERFACE!C$47,INTERFACE!F123) ->  | C112: =100-INTERFACE!B123 ->  | E112: =INTERFACE!E122+12/1200 -> 0.72 | F112: =((INTERFACE!C$11)/((10^-(INTERFACE!E123))+(INTERFACE!C$11)))*100 ->  | G112: =100-INTERFACE!F123 -> 
A113: =(MIN(INTERFACE!AD$15,INTERFACE!E124)) -> 0 | B113: =MIN(INTERFACE!C$47,INTERFACE!F124) ->  | C113: =100-INTERFACE!B124 ->  | E113: =INTERFACE!E123+12/1200 -> 0.73 | F113: =((INTERFACE!C$11)/((10^-(INTERFACE!E124))+(INTERFACE!C$11)))*100 ->  | G113: =100-INTERFACE!F124 -> 
A114: =(MIN(INTERFACE!AD$15,INTERFACE!E125)) -> 0 | B114: =MIN(INTERFACE!C$47,INTERFACE!F125) ->  | C114: =100-INTERFACE!B125 ->  | E114: =INTERFACE!E124+12/1200 -> 0.74 | F114: =((INTERFACE!C$11)/((10^-(INTERFACE!E125))+(INTERFACE!C$11)))*100 ->  | G114: =100-INTERFACE!F125 -> 
A115: =(MIN(INTERFACE!AD$15,INTERFACE!E126)) -> 0 | B115: =MIN(INTERFACE!C$47,INTERFACE!F126) ->  | C115: =100-INTERFACE!B126 ->  | E115: =INTERFACE!E125+12/1200 -> 0.75 | F115: =((INTERFACE!C$11)/((10^-(INTERFACE!E126))+(INTERFACE!C$11)))*100 ->  | G115: =100-INTERFACE!F126 -> 
A116: =(MIN(INTERFACE!AD$15,INTERFACE!E127)) -> 0 | B116: =MIN(INTERFACE!C$47,INTERFACE!F127) ->  | C116: =100-INTERFACE!B127 ->  | E116: =INTERFACE!E126+12/1200 -> 0.76 | F116: =((INTERFACE!C$11)/((10^-(INTERFACE!E127))+(INTERFACE!C$11)))*100 ->  | G116: =100-INTERFACE!F127 -> 
A117: =(MIN(INTERFACE!AD$15,INTERFACE!E128)) -> 0 | B117: =MIN(INTERFACE!C$47,INTERFACE!F128) ->  | C117: =100-INTERFACE!B128 ->  | E117: =INTERFACE!E127+12/1200 -> 0.77 | F117: =((INTERFACE!C$11)/((10^-(INTERFACE!E128))+(INTERFACE!C$11)))*100 ->  | G117: =100-INTERFACE!F128 -> 
A118: =(MIN(INTERFACE!AD$15,INTERFACE!E129)) -> 0 | B118: =MIN(INTERFACE!C$47,INTERFACE!F129) ->  | C118: =100-INTERFACE!B129 ->  | E118: =INTERFACE!E128+12/1200 -> 0.78 | F118: =((INTERFACE!C$11)/((10^-(INTERFACE!E129))+(INTERFACE!C$11)))*100 ->  | G118: =100-INTERFACE!F129 -> 
A119: =(MIN(INTERFACE!AD$15,INTERFACE!E130)) -> 0 | B119: =MIN(INTERFACE!C$47,INTERFACE!F130) ->  | C119: =100-INTERFACE!B130 ->  | E119: =INTERFACE!E129+12/1200 -> 0.79 | F119: =((INTERFACE!C$11)/((10^-(INTERFACE!E130))+(INTERFACE!C$11)))*100 ->  | G119: =100-INTERFACE!F130 -> 
A120: =(MIN(INTERFACE!AD$15,INTERFACE!E131)) -> 0 | B120: =MIN(INTERFACE!C$47,INTERFACE!F131) ->  | C120: =100-INTERFACE!B131 ->  | E120: =INTERFACE!E130+12/1200 -> 0.8 | F120: =((INTERFACE!C$11)/((10^-(INTERFACE!E131))+(INTERFACE!C$11)))*100 ->  | G120: =100-INTERFACE!F131 -> 
A121: =(MIN(INTERFACE!AD$15,INTERFACE!E132)) -> 0 | B121: =MIN(INTERFACE!C$47,INTERFACE!F132) ->  | C121: =100-INTERFACE!B132 ->  | E121: =INTERFACE!E131+12/1200 -> 0.81 | F121: =((INTERFACE!C$11)/((10^-(INTERFACE!E132))+(INTERFACE!C$11)))*100 ->  | G121: =100-INTERFACE!F132 -> 
A122: =(MIN(INTERFACE!AD$15,INTERFACE!E133)) -> 0 | B122: =MIN(INTERFACE!C$47,INTERFACE!F133) ->  | C122: =100-INTERFACE!B133 ->  | E122: =INTERFACE!E132+12/1200 -> 0.82 | F122: =((INTERFACE!C$11)/((10^-(INTERFACE!E133))+(INTERFACE!C$11)))*100 ->  | G122: =100-INTERFACE!F133 -> 
A123: =(MIN(INTERFACE!AD$15,INTERFACE!E134)) -> 0 | B123: =MIN(INTERFACE!C$47,INTERFACE!F134) ->  | C123: =100-INTERFACE!B134 ->  | E123: =INTERFACE!E133+12/1200 -> 0.83 | F123: =((INTERFACE!C$11)/((10^-(INTERFACE!E134))+(INTERFACE!C$11)))*100 ->  | G123: =100-INTERFACE!F134 -> 
A124: =(MIN(INTERFACE!AD$15,INTERFACE!E135)) -> 0 | B124: =MIN(INTERFACE!C$47,INTERFACE!F135) ->  | C124: =100-INTERFACE!B135 ->  | E124: =INTERFACE!E134+12/1200 -> 0.84 | F124: =((INTERFACE!C$11)/((10^-(INTERFACE!E135))+(INTERFACE!C$11)))*100 ->  | G124: =100-INTERFACE!F135 -> 
A125: =(MIN(INTERFACE!AD$15,INTERFACE!E136)) -> 0 | B125: =MIN(INTERFACE!C$47,INTERFACE!F136) ->  | C125: =100-INTERFACE!B136 ->  | E125: =INTERFACE!E135+12/1200 -> 0.85 | F125: =((INTERFACE!C$11)/((10^-(INTERFACE!E136))+(INTERFACE!C$11)))*100 ->  | G125: =100-INTERFACE!F136 -> 
A126: =(MIN(INTERFACE!AD$15,INTERFACE!E137)) -> 0 | B126: =MIN(INTERFACE!C$47,INTERFACE!F137) ->  | C126: =100-INTERFACE!B137 ->  | E126: =INTERFACE!E136+12/1200 -> 0.86 | F126: =((INTERFACE!C$11)/((10^-(INTERFACE!E137))+(INTERFACE!C$11)))*100 ->  | G126: =100-INTERFACE!F137 -> 
A127: =(MIN(INTERFACE!AD$15,INTERFACE!E138)) -> 0 | B127: =MIN(INTERFACE!C$47,INTERFACE!F138) ->  | C127: =100-INTERFACE!B138 ->  | E127: =INTERFACE!E137+12/1200 -> 0.87 | F127: =((INTERFACE!C$11)/((10^-(INTERFACE!E138))+(INTERFACE!C$11)))*100 ->  | G127: =100-INTERFACE!F138 -> 
A128: =(MIN(INTERFACE!AD$15,INTERFACE!E139)) -> 0 | B128: =MIN(INTERFACE!C$47,INTERFACE!F139) ->  | C128: =100-INTERFACE!B139 ->  | E128: =INTERFACE!E138+12/1200 -> 0.88 | F128: =((INTERFACE!C$11)/((10^-(INTERFACE!E139))+(INTERFACE!C$11)))*100 ->  | G128: =100-INTERFACE!F139 -> 
A129: =(MIN(INTERFACE!AD$15,INTERFACE!E140)) -> 0 | B129: =MIN(INTERFACE!C$47,INTERFACE!F140) ->  | C129: =100-INTERFACE!B140 ->  | E129: =INTERFACE!E139+12/1200 -> 0.89 | F129: =((INTERFACE!C$11)/((10^-(INTERFACE!E140))+(INTERFACE!C$11)))*100 ->  | G129: =100-INTERFACE!F140 -> 
A130: =(MIN(INTERFACE!AD$15,INTERFACE!E141)) -> 0 | B130: =MIN(INTERFACE!C$47,INTERFACE!F141) ->  | C130: =100-INTERFACE!B141 ->  | E130: =INTERFACE!E140+12/1200 -> 0.9 | F130: =((INTERFACE!C$11)/((10^-(INTERFACE!E141))+(INTERFACE!C$11)))*100 ->  | G130: =100-INTERFACE!F141 -> 
A131: =(MIN(INTERFACE!AD$15,INTERFACE!E142)) -> 0 | B131: =MIN(INTERFACE!C$47,INTERFACE!F142) ->  | C131: =100-INTERFACE!B142 ->  | E131: =INTERFACE!E141+12/1200 -> 0.91 | F131: =((INTERFACE!C$11)/((10^-(INTERFACE!E142))+(INTERFACE!C$11)))*100 ->  | G131: =100-INTERFACE!F142 -> 
A132: =(MIN(INTERFACE!AD$15,INTERFACE!E143)) -> 0 | B132: =MIN(INTERFACE!C$47,INTERFACE!F143) ->  | C132: =100-INTERFACE!B143 ->  | E132: =INTERFACE!E142+12/1200 -> 0.92 | F132: =((INTERFACE!C$11)/((10^-(INTERFACE!E143))+(INTERFACE!C$11)))*100 ->  | G132: =100-INTERFACE!F143 -> 
A133: =(MIN(INTERFACE!AD$15,INTERFACE!E144)) -> 0 | B133: =MIN(INTERFACE!C$47,INTERFACE!F144) ->  | C133: =100-INTERFACE!B144 ->  | E133: =INTERFACE!E143+12/1200 -> 0.93 | F133: =((INTERFACE!C$11)/((10^-(INTERFACE!E144))+(INTERFACE!C$11)))*100 ->  | G133: =100-INTERFACE!F144 -> 
A134: =(MIN(INTERFACE!AD$15,INTERFACE!E145)) -> 0 | B134: =MIN(INTERFACE!C$47,INTERFACE!F145) ->  | C134: =100-INTERFACE!B145 ->  | E134: =INTERFACE!E144+12/1200 -> 0.94 | F134: =((INTERFACE!C$11)/((10^-(INTERFACE!E145))+(INTERFACE!C$11)))*100 ->  | G134: =100-INTERFACE!F145 -> 
A135: =(MIN(INTERFACE!AD$15,INTERFACE!E146)) -> 0 | B135: =MIN(INTERFACE!C$47,INTERFACE!F146) ->  | C135: =100-INTERFACE!B146 ->  | E135: =INTERFACE!E145+12/1200 -> 0.95 | F135: =((INTERFACE!C$11)/((10^-(INTERFACE!E146))+(INTERFACE!C$11)))*100 ->  | G135: =100-INTERFACE!F146 -> 
A136: =(MIN(INTERFACE!AD$15,INTERFACE!E147)) -> 0 | B136: =MIN(INTERFACE!C$47,INTERFACE!F147) ->  | C136: =100-INTERFACE!B147 ->  | E136: =INTERFACE!E146+12/1200 -> 0.96 | F136: =((INTERFACE!C$11)/((10^-(INTERFACE!E147))+(INTERFACE!C$11)))*100 ->  | G136: =100-INTERFACE!F147 -> 
A137: =(MIN(INTERFACE!AD$15,INTERFACE!E148)) -> 0 | B137: =MIN(INTERFACE!C$47,INTERFACE!F148) ->  | C137: =100-INTERFACE!B148 ->  | E137: =INTERFACE!E147+12/1200 -> 0.97 | F137: =((INTERFACE!C$11)/((10^-(INTERFACE!E148))+(INTERFACE!C$11)))*100 ->  | G137: =100-INTERFACE!F148 -> 
A138: =(MIN(INTERFACE!AD$15,INTERFACE!E149)) -> 0 | B138: =MIN(INTERFACE!C$47,INTERFACE!F149) ->  | C138: =100-INTERFACE!B149 ->  | E138: =INTERFACE!E148+12/1200 -> 0.98 | F138: =((INTERFACE!C$11)/((10^-(INTERFACE!E149))+(INTERFACE!C$11)))*100 ->  | G138: =100-INTERFACE!F149 -> 
A139: =(MIN(INTERFACE!AD$15,INTERFACE!E150)) -> 0 | B139: =MIN(INTERFACE!C$47,INTERFACE!F150) ->  | C139: =100-INTERFACE!B150 ->  | E139: =INTERFACE!E149+12/1200 -> 0.99 | F139: =((INTERFACE!C$11)/((10^-(INTERFACE!E150))+(INTERFACE!C$11)))*100 ->  | G139: =100-INTERFACE!F150 -> 
A140: =(MIN(INTERFACE!AD$15,INTERFACE!E151)) -> 0 | B140: =MIN(INTERFACE!C$47,INTERFACE!F151) ->  | C140: =100-INTERFACE!B151 ->  | E140: =INTERFACE!E150+12/1200 -> 1 | F140: =((INTERFACE!C$11)/((10^-(INTERFACE!E151))+(INTERFACE!C$11)))*100 ->  | G140: =100-INTERFACE!F151 -> 
A141: =(MIN(INTERFACE!AD$15,INTERFACE!E152)) -> 0 | B141: =MIN(INTERFACE!C$47,INTERFACE!F152) ->  | C141: =100-INTERFACE!B152 ->  | E141: =INTERFACE!E151+12/1200 -> 1.01 | F141: =((INTERFACE!C$11)/((10^-(INTERFACE!E152))+(INTERFACE!C$11)))*100 ->  | G141: =100-INTERFACE!F152 -> 
A142: =(MIN(INTERFACE!AD$15,INTERFACE!E153)) -> 0 | B142: =MIN(INTERFACE!C$47,INTERFACE!F153) ->  | C142: =100-INTERFACE!B153 ->  | E142: =INTERFACE!E152+12/1200 -> 1.02 | F142: =((INTERFACE!C$11)/((10^-(INTERFACE!E153))+(INTERFACE!C$11)))*100 ->  | G142: =100-INTERFACE!F153 -> 
A143: =(MIN(INTERFACE!AD$15,INTERFACE!E154)) -> 0 | B143: =MIN(INTERFACE!C$47,INTERFACE!F154) ->  | C143: =100-INTERFACE!B154 ->  | E143: =INTERFACE!E153+12/1200 -> 1.03 | F143: =((INTERFACE!C$11)/((10^-(INTERFACE!E154))+(INTERFACE!C$11)))*100 ->  | G143: =100-INTERFACE!F154 -> 
A144: =(MIN(INTERFACE!AD$15,INTERFACE!E155)) -> 0 | B144: =MIN(INTERFACE!C$47,INTERFACE!F155) ->  | C144: =100-INTERFACE!B155 ->  | E144: =INTERFACE!E154+12/1200 -> 1.04 | F144: =((INTERFACE!C$11)/((10^-(INTERFACE!E155))+(INTERFACE!C$11)))*100 ->  | G144: =100-INTERFACE!F155 -> 
A145: =(MIN(INTERFACE!AD$15,INTERFACE!E156)) -> 0 | B145: =MIN(INTERFACE!C$47,INTERFACE!F156) ->  | C145: =100-INTERFACE!B156 ->  | E145: =INTERFACE!E155+12/1200 -> 1.05 | F145: =((INTERFACE!C$11)/((10^-(INTERFACE!E156))+(INTERFACE!C$11)))*100 ->  | G145: =100-INTERFACE!F156 -> 
A146: =(MIN(INTERFACE!AD$15,INTERFACE!E157)) -> 0 | B146: =MIN(INTERFACE!C$47,INTERFACE!F157) ->  | C146: =100-INTERFACE!B157 ->  | E146: =INTERFACE!E156+12/1200 -> 1.06 | F146: =((INTERFACE!C$11)/((10^-(INTERFACE!E157))+(INTERFACE!C$11)))*100 ->  | G146: =100-INTERFACE!F157 -> 
A147: =(MIN(INTERFACE!AD$15,INTERFACE!E158)) -> 0 | B147: =MIN(INTERFACE!C$47,INTERFACE!F158) ->  | C147: =100-INTERFACE!B158 ->  | E147: =INTERFACE!E157+12/1200 -> 1.07 | F147: =((INTERFACE!C$11)/((10^-(INTERFACE!E158))+(INTERFACE!C$11)))*100 ->  | G147: =100-INTERFACE!F158 -> 
A148: =(MIN(INTERFACE!AD$15,INTERFACE!E159)) -> 0 | B148: =MIN(INTERFACE!C$47,INTERFACE!F159) ->  | C148: =100-INTERFACE!B159 ->  | E148: =INTERFACE!E158+12/1200 -> 1.08 | F148: =((INTERFACE!C$11)/((10^-(INTERFACE!E159))+(INTERFACE!C$11)))*100 ->  | G148: =100-INTERFACE!F159 -> 
A149: =(MIN(INTERFACE!AD$15,INTERFACE!E160)) -> 0 | B149: =MIN(INTERFACE!C$47,INTERFACE!F160) ->  | C149: =100-INTERFACE!B160 ->  | E149: =INTERFACE!E159+12/1200 -> 1.09 | F149: =((INTERFACE!C$11)/((10^-(INTERFACE!E160))+(INTERFACE!C$11)))*100 ->  | G149: =100-INTERFACE!F160 -> 
A150: =(MIN(INTERFACE!AD$15,INTERFACE!E161)) -> 0 | B150: =MIN(INTERFACE!C$47,INTERFACE!F161) ->  | C150: =100-INTERFACE!B161 ->  | E150: =INTERFACE!E160+12/1200 -> 1.1 | F150: =((INTERFACE!C$11)/((10^-(INTERFACE!E161))+(INTERFACE!C$11)))*100 ->  | G150: =100-INTERFACE!F161 -> 
A151: =(MIN(INTERFACE!AD$15,INTERFACE!E162)) -> 0 | B151: =MIN(INTERFACE!C$47,INTERFACE!F162) ->  | C151: =100-INTERFACE!B162 ->  | E151: =INTERFACE!E161+12/1200 -> 1.11 | F151: =((INTERFACE!C$11)/((10^-(INTERFACE!E162))+(INTERFACE!C$11)))*100 ->  | G151: =100-INTERFACE!F162 -> 
A152: =(MIN(INTERFACE!AD$15,INTERFACE!E163)) -> 0 | B152: =MIN(INTERFACE!C$47,INTERFACE!F163) ->  | C152: =100-INTERFACE!B163 ->  | E152: =INTERFACE!E162+12/1200 -> 1.12 | F152: =((INTERFACE!C$11)/((10^-(INTERFACE!E163))+(INTERFACE!C$11)))*100 ->  | G152: =100-INTERFACE!F163 -> 
A153: =(MIN(INTERFACE!AD$15,INTERFACE!E164)) -> 0 | B153: =MIN(INTERFACE!C$47,INTERFACE!F164) ->  | C153: =100-INTERFACE!B164 ->  | E153: =INTERFACE!E163+12/1200 -> 1.13 | F153: =((INTERFACE!C$11)/((10^-(INTERFACE!E164))+(INTERFACE!C$11)))*100 ->  | G153: =100-INTERFACE!F164 -> 
A154: =(MIN(INTERFACE!AD$15,INTERFACE!E165)) -> 0 | B154: =MIN(INTERFACE!C$47,INTERFACE!F165) ->  | C154: =100-INTERFACE!B165 ->  | E154: =INTERFACE!E164+12/1200 -> 1.14 | F154: =((INTERFACE!C$11)/((10^-(INTERFACE!E165))+(INTERFACE!C$11)))*100 ->  | G154: =100-INTERFACE!F165 -> 
A155: =(MIN(INTERFACE!AD$15,INTERFACE!E166)) -> 0 | B155: =MIN(INTERFACE!C$47,INTERFACE!F166) ->  | C155: =100-INTERFACE!B166 ->  | E155: =INTERFACE!E165+12/1200 -> 1.15 | F155: =((INTERFACE!C$11)/((10^-(INTERFACE!E166))+(INTERFACE!C$11)))*100 ->  | G155: =100-INTERFACE!F166 -> 
A156: =(MIN(INTERFACE!AD$15,INTERFACE!E167)) -> 0 | B156: =MIN(INTERFACE!C$47,INTERFACE!F167) ->  | C156: =100-INTERFACE!B167 ->  | E156: =INTERFACE!E166+12/1200 -> 1.16 | F156: =((INTERFACE!C$11)/((10^-(INTERFACE!E167))+(INTERFACE!C$11)))*100 ->  | G156: =100-INTERFACE!F167 -> 
A157: =(MIN(INTERFACE!AD$15,INTERFACE!E168)) -> 0 | B157: =MIN(INTERFACE!C$47,INTERFACE!F168) ->  | C157: =100-INTERFACE!B168 ->  | E157: =INTERFACE!E167+12/1200 -> 1.17 | F157: =((INTERFACE!C$11)/((10^-(INTERFACE!E168))+(INTERFACE!C$11)))*100 ->  | G157: =100-INTERFACE!F168 -> 
A158: =(MIN(INTERFACE!AD$15,INTERFACE!E169)) -> 0 | B158: =MIN(INTERFACE!C$47,INTERFACE!F169) ->  | C158: =100-INTERFACE!B169 ->  | E158: =INTERFACE!E168+12/1200 -> 1.18 | F158: =((INTERFACE!C$11)/((10^-(INTERFACE!E169))+(INTERFACE!C$11)))*100 ->  | G158: =100-INTERFACE!F169 -> 
A159: =(MIN(INTERFACE!AD$15,INTERFACE!E170)) -> 0 | B159: =MIN(INTERFACE!C$47,INTERFACE!F170) ->  | C159: =100-INTERFACE!B170 ->  | E159: =INTERFACE!E169+12/1200 -> 1.19 | F159: =((INTERFACE!C$11)/((10^-(INTERFACE!E170))+(INTERFACE!C$11)))*100 ->  | G159: =100-INTERFACE!F170 -> 
A160: =(MIN(INTERFACE!AD$15,INTERFACE!E171)) -> 0 | B160: =MIN(INTERFACE!C$47,INTERFACE!F171) ->  | C160: =100-INTERFACE!B171 ->  | E160: =INTERFACE!E170+12/1200 -> 1.2 | F160: =((INTERFACE!C$11)/((10^-(INTERFACE!E171))+(INTERFACE!C$11)))*100 ->  | G160: =100-INTERFACE!F171 -> 
A161: =(MIN(INTERFACE!AD$15,INTERFACE!E172)) -> 0 | B161: =MIN(INTERFACE!C$47,INTERFACE!F172) ->  | C161: =100-INTERFACE!B172 ->  | E161: =INTERFACE!E171+12/1200 -> 1.21 | F161: =((INTERFACE!C$11)/((10^-(INTERFACE!E172))+(INTERFACE!C$11)))*100 ->  | G161: =100-INTERFACE!F172 -> 
A162: =(MIN(INTERFACE!AD$15,INTERFACE!E173)) -> 0 | B162: =MIN(INTERFACE!C$47,INTERFACE!F173) ->  | C162: =100-INTERFACE!B173 ->  | E162: =INTERFACE!E172+12/1200 -> 1.22 | F162: =((INTERFACE!C$11)/((10^-(INTERFACE!E173))+(INTERFACE!C$11)))*100 ->  | G162: =100-INTERFACE!F173 -> 
A163: =(MIN(INTERFACE!AD$15,INTERFACE!E174)) -> 0 | B163: =MIN(INTERFACE!C$47,INTERFACE!F174) ->  | C163: =100-INTERFACE!B174 ->  | E163: =INTERFACE!E173+12/1200 -> 1.23 | F163: =((INTERFACE!C$11)/((10^-(INTERFACE!E174))+(INTERFACE!C$11)))*100 ->  | G163: =100-INTERFACE!F174 -> 
A164: =(MIN(INTERFACE!AD$15,INTERFACE!E175)) -> 0 | B164: =MIN(INTERFACE!C$47,INTERFACE!F175) ->  | C164: =100-INTERFACE!B175 ->  | E164: =INTERFACE!E174+12/1200 -> 1.24 | F164: =((INTERFACE!C$11)/((10^-(INTERFACE!E175))+(INTERFACE!C$11)))*100 ->  | G164: =100-INTERFACE!F175 -> 
A165: =(MIN(INTERFACE!AD$15,INTERFACE!E176)) -> 0 | B165: =MIN(INTERFACE!C$47,INTERFACE!F176) ->  | C165: =100-INTERFACE!B176 ->  | E165: =INTERFACE!E175+12/1200 -> 1.25 | F165: =((INTERFACE!C$11)/((10^-(INTERFACE!E176))+(INTERFACE!C$11)))*100 ->  | G165: =100-INTERFACE!F176 -> 
A166: =(MIN(INTERFACE!AD$15,INTERFACE!E177)) -> 0 | B166: =MIN(INTERFACE!C$47,INTERFACE!F177) ->  | C166: =100-INTERFACE!B177 ->  | E166: =INTERFACE!E176+12/1200 -> 1.26 | F166: =((INTERFACE!C$11)/((10^-(INTERFACE!E177))+(INTERFACE!C$11)))*100 ->  | G166: =100-INTERFACE!F177 -> 
A167: =(MIN(INTERFACE!AD$15,INTERFACE!E178)) -> 0 | B167: =MIN(INTERFACE!C$47,INTERFACE!F178) ->  | C167: =100-INTERFACE!B178 ->  | E167: =INTERFACE!E177+12/1200 -> 1.27 | F167: =((INTERFACE!C$11)/((10^-(INTERFACE!E178))+(INTERFACE!C$11)))*100 ->  | G167: =100-INTERFACE!F178 -> 
A168: =(MIN(INTERFACE!AD$15,INTERFACE!E179)) -> 0 | B168: =MIN(INTERFACE!C$47,INTERFACE!F179) ->  | C168: =100-INTERFACE!B179 ->  | E168: =INTERFACE!E178+12/1200 -> 1.28 | F168: =((INTERFACE!C$11)/((10^-(INTERFACE!E179))+(INTERFACE!C$11)))*100 ->  | G168: =100-INTERFACE!F179 -> 
A169: =(MIN(INTERFACE!AD$15,INTERFACE!E180)) -> 0 | B169: =MIN(INTERFACE!C$47,INTERFACE!F180) ->  | C169: =100-INTERFACE!B180 ->  | E169: =INTERFACE!E179+12/1200 -> 1.29 | F169: =((INTERFACE!C$11)/((10^-(INTERFACE!E180))+(INTERFACE!C$11)))*100 ->  | G169: =100-INTERFACE!F180 -> 
A170: =(MIN(INTERFACE!AD$15,INTERFACE!E181)) -> 0 | B170: =MIN(INTERFACE!C$47,INTERFACE!F181) ->  | C170: =100-INTERFACE!B181 ->  | E170: =INTERFACE!E180+12/1200 -> 1.3 | F170: =((INTERFACE!C$11)/((10^-(INTERFACE!E181))+(INTERFACE!C$11)))*100 ->  | G170: =100-INTERFACE!F181 -> 
A171: =(MIN(INTERFACE!AD$15,INTERFACE!E182)) -> 0 | B171: =MIN(INTERFACE!C$47,INTERFACE!F182) ->  | C171: =100-INTERFACE!B182 ->  | E171: =INTERFACE!E181+12/1200 -> 1.31 | F171: =((INTERFACE!C$11)/((10^-(INTERFACE!E182))+(INTERFACE!C$11)))*100 ->  | G171: =100-INTERFACE!F182 -> 
A172: =(MIN(INTERFACE!AD$15,INTERFACE!E183)) -> 0 | B172: =MIN(INTERFACE!C$47,INTERFACE!F183) ->  | C172: =100-INTERFACE!B183 ->  | E172: =INTERFACE!E182+12/1200 -> 1.32 | F172: =((INTERFACE!C$11)/((10^-(INTERFACE!E183))+(INTERFACE!C$11)))*100 ->  | G172: =100-INTERFACE!F183 -> 
A173: =(MIN(INTERFACE!AD$15,INTERFACE!E184)) -> 0 | B173: =MIN(INTERFACE!C$47,INTERFACE!F184) ->  | C173: =100-INTERFACE!B184 ->  | E173: =INTERFACE!E183+12/1200 -> 1.33 | F173: =((INTERFACE!C$11)/((10^-(INTERFACE!E184))+(INTERFACE!C$11)))*100 ->  | G173: =100-INTERFACE!F184 -> 
A174: =(MIN(INTERFACE!AD$15,INTERFACE!E185)) -> 0 | B174: =MIN(INTERFACE!C$47,INTERFACE!F185) ->  | C174: =100-INTERFACE!B185 ->  | E174: =INTERFACE!E184+12/1200 -> 1.34 | F174: =((INTERFACE!C$11)/((10^-(INTERFACE!E185))+(INTERFACE!C$11)))*100 ->  | G174: =100-INTERFACE!F185 -> 
A175: =(MIN(INTERFACE!AD$15,INTERFACE!E186)) -> 0 | B175: =MIN(INTERFACE!C$47,INTERFACE!F186) ->  | C175: =100-INTERFACE!B186 ->  | E175: =INTERFACE!E185+12/1200 -> 1.35 | F175: =((INTERFACE!C$11)/((10^-(INTERFACE!E186))+(INTERFACE!C$11)))*100 ->  | G175: =100-INTERFACE!F186 -> 
A176: =(MIN(INTERFACE!AD$15,INTERFACE!E187)) -> 0 | B176: =MIN(INTERFACE!C$47,INTERFACE!F187) ->  | C176: =100-INTERFACE!B187 ->  | E176: =INTERFACE!E186+12/1200 -> 1.36 | F176: =((INTERFACE!C$11)/((10^-(INTERFACE!E187))+(INTERFACE!C$11)))*100 ->  | G176: =100-INTERFACE!F187 -> 
A177: =(MIN(INTERFACE!AD$15,INTERFACE!E188)) -> 0 | B177: =MIN(INTERFACE!C$47,INTERFACE!F188) ->  | C177: =100-INTERFACE!B188 ->  | E177: =INTERFACE!E187+12/1200 -> 1.37 | F177: =((INTERFACE!C$11)/((10^-(INTERFACE!E188))+(INTERFACE!C$11)))*100 ->  | G177: =100-INTERFACE!F188 -> 
A178: =(MIN(INTERFACE!AD$15,INTERFACE!E189)) -> 0 | B178: =MIN(INTERFACE!C$47,INTERFACE!F189) ->  | C178: =100-INTERFACE!B189 ->  | E178: =INTERFACE!E188+12/1200 -> 1.38 | F178: =((INTERFACE!C$11)/((10^-(INTERFACE!E189))+(INTERFACE!C$11)))*100 ->  | G178: =100-INTERFACE!F189 -> 
A179: =(MIN(INTERFACE!AD$15,INTERFACE!E190)) -> 0 | B179: =MIN(INTERFACE!C$47,INTERFACE!F190) ->  | C179: =100-INTERFACE!B190 ->  | E179: =INTERFACE!E189+12/1200 -> 1.39 | F179: =((INTERFACE!C$11)/((10^-(INTERFACE!E190))+(INTERFACE!C$11)))*100 ->  | G179: =100-INTERFACE!F190 -> 
A180: =(MIN(INTERFACE!AD$15,INTERFACE!E191)) -> 0 | B180: =MIN(INTERFACE!C$47,INTERFACE!F191) ->  | C180: =100-INTERFACE!B191 ->  | E180: =INTERFACE!E190+12/1200 -> 1.4 | F180: =((INTERFACE!C$11)/((10^-(INTERFACE!E191))+(INTERFACE!C$11)))*100 ->  | G180: =100-INTERFACE!F191 -> 
A181: =(MIN(INTERFACE!AD$15,INTERFACE!E192)) -> 0 | B181: =MIN(INTERFACE!C$47,INTERFACE!F192) ->  | C181: =100-INTERFACE!B192 ->  | E181: =INTERFACE!E191+12/1200 -> 1.41 | F181: =((INTERFACE!C$11)/((10^-(INTERFACE!E192))+(INTERFACE!C$11)))*100 ->  | G181: =100-INTERFACE!F192 -> 
A182: =(MIN(INTERFACE!AD$15,INTERFACE!E193)) -> 0 | B182: =MIN(INTERFACE!C$47,INTERFACE!F193) ->  | C182: =100-INTERFACE!B193 ->  | E182: =INTERFACE!E192+12/1200 -> 1.42 | F182: =((INTERFACE!C$11)/((10^-(INTERFACE!E193))+(INTERFACE!C$11)))*100 ->  | G182: =100-INTERFACE!F193 -> 
A183: =(MIN(INTERFACE!AD$15,INTERFACE!E194)) -> 0 | B183: =MIN(INTERFACE!C$47,INTERFACE!F194) ->  | C183: =100-INTERFACE!B194 ->  | E183: =INTERFACE!E193+12/1200 -> 1.43 | F183: =((INTERFACE!C$11)/((10^-(INTERFACE!E194))+(INTERFACE!C$11)))*100 ->  | G183: =100-INTERFACE!F194 -> 
A184: =(MIN(INTERFACE!AD$15,INTERFACE!E195)) -> 0 | B184: =MIN(INTERFACE!C$47,INTERFACE!F195) ->  | C184: =100-INTERFACE!B195 ->  | E184: =INTERFACE!E194+12/1200 -> 1.44 | F184: =((INTERFACE!C$11)/((10^-(INTERFACE!E195))+(INTERFACE!C$11)))*100 ->  | G184: =100-INTERFACE!F195 -> 
A185: =(MIN(INTERFACE!AD$15,INTERFACE!E196)) -> 0 | B185: =MIN(INTERFACE!C$47,INTERFACE!F196) ->  | C185: =100-INTERFACE!B196 ->  | E185: =INTERFACE!E195+12/1200 -> 1.45 | F185: =((INTERFACE!C$11)/((10^-(INTERFACE!E196))+(INTERFACE!C$11)))*100 ->  | G185: =100-INTERFACE!F196 -> 
A186: =(MIN(INTERFACE!AD$15,INTERFACE!E197)) -> 0 | B186: =MIN(INTERFACE!C$47,INTERFACE!F197) ->  | C186: =100-INTERFACE!B197 ->  | E186: =INTERFACE!E196+12/1200 -> 1.46 | F186: =((INTERFACE!C$11)/((10^-(INTERFACE!E197))+(INTERFACE!C$11)))*100 ->  | G186: =100-INTERFACE!F197 -> 
A187: =(MIN(INTERFACE!AD$15,INTERFACE!E198)) -> 0 | B187: =MIN(INTERFACE!C$47,INTERFACE!F198) ->  | C187: =100-INTERFACE!B198 ->  | E187: =INTERFACE!E197+12/1200 -> 1.47 | F187: =((INTERFACE!C$11)/((10^-(INTERFACE!E198))+(INTERFACE!C$11)))*100 ->  | G187: =100-INTERFACE!F198 -> 
A188: =(MIN(INTERFACE!AD$15,INTERFACE!E199)) -> 0 | B188: =MIN(INTERFACE!C$47,INTERFACE!F199) ->  | C188: =100-INTERFACE!B199 ->  | E188: =INTERFACE!E198+12/1200 -> 1.48 | F188: =((INTERFACE!C$11)/((10^-(INTERFACE!E199))+(INTERFACE!C$11)))*100 ->  | G188: =100-INTERFACE!F199 -> 
A189: =(MIN(INTERFACE!AD$15,INTERFACE!E200)) -> 0 | B189: =MIN(INTERFACE!C$47,INTERFACE!F200) ->  | C189: =100-INTERFACE!B200 ->  | E189: =INTERFACE!E199+12/1200 -> 1.49 | F189: =((INTERFACE!C$11)/((10^-(INTERFACE!E200))+(INTERFACE!C$11)))*100 ->  | G189: =100-INTERFACE!F200 -> 
A190: =(MIN(INTERFACE!AD$15,INTERFACE!E201)) -> 0 | B190: =MIN(INTERFACE!C$47,INTERFACE!F201) ->  | C190: =100-INTERFACE!B201 ->  | E190: =INTERFACE!E200+12/1200 -> 1.5 | F190: =((INTERFACE!C$11)/((10^-(INTERFACE!E201))+(INTERFACE!C$11)))*100 ->  | G190: =100-INTERFACE!F201 -> 
A191: =(MIN(INTERFACE!AD$15,INTERFACE!E202)) -> 0 | B191: =MIN(INTERFACE!C$47,INTERFACE!F202) ->  | C191: =100-INTERFACE!B202 ->  | E191: =INTERFACE!E201+12/1200 -> 1.51 | F191: =((INTERFACE!C$11)/((10^-(INTERFACE!E202))+(INTERFACE!C$11)))*100 ->  | G191: =100-INTERFACE!F202 -> 
A192: =(MIN(INTERFACE!AD$15,INTERFACE!E203)) -> 0 | B192: =MIN(INTERFACE!C$47,INTERFACE!F203) ->  | C192: =100-INTERFACE!B203 ->  | E192: =INTERFACE!E202+12/1200 -> 1.52 | F192: =((INTERFACE!C$11)/((10^-(INTERFACE!E203))+(INTERFACE!C$11)))*100 ->  | G192: =100-INTERFACE!F203 -> 
A193: =(MIN(INTERFACE!AD$15,INTERFACE!E204)) -> 0 | B193: =MIN(INTERFACE!C$47,INTERFACE!F204) ->  | C193: =100-INTERFACE!B204 ->  | E193: =INTERFACE!E203+12/1200 -> 1.53 | F193: =((INTERFACE!C$11)/((10^-(INTERFACE!E204))+(INTERFACE!C$11)))*100 ->  | G193: =100-INTERFACE!F204 -> 
A194: =(MIN(INTERFACE!AD$15,INTERFACE!E205)) -> 0 | B194: =MIN(INTERFACE!C$47,INTERFACE!F205) ->  | C194: =100-INTERFACE!B205 ->  | E194: =INTERFACE!E204+12/1200 -> 1.54 | F194: =((INTERFACE!C$11)/((10^-(INTERFACE!E205))+(INTERFACE!C$11)))*100 ->  | G194: =100-INTERFACE!F205 -> 
A195: =(MIN(INTERFACE!AD$15,INTERFACE!E206)) -> 0 | B195: =MIN(INTERFACE!C$47,INTERFACE!F206) ->  | C195: =100-INTERFACE!B206 ->  | E195: =INTERFACE!E205+12/1200 -> 1.55 | F195: =((INTERFACE!C$11)/((10^-(INTERFACE!E206))+(INTERFACE!C$11)))*100 ->  | G195: =100-INTERFACE!F206 -> 
A196: =(MIN(INTERFACE!AD$15,INTERFACE!E207)) -> 0 | B196: =MIN(INTERFACE!C$47,INTERFACE!F207) ->  | C196: =100-INTERFACE!B207 ->  | E196: =INTERFACE!E206+12/1200 -> 1.56 | F196: =((INTERFACE!C$11)/((10^-(INTERFACE!E207))+(INTERFACE!C$11)))*100 ->  | G196: =100-INTERFACE!F207 -> 
A197: =(MIN(INTERFACE!AD$15,INTERFACE!E208)) -> 0 | B197: =MIN(INTERFACE!C$47,INTERFACE!F208) ->  | C197: =100-INTERFACE!B208 ->  | E197: =INTERFACE!E207+12/1200 -> 1.57 | F197: =((INTERFACE!C$11)/((10^-(INTERFACE!E208))+(INTERFACE!C$11)))*100 ->  | G197: =100-INTERFACE!F208 -> 
A198: =(MIN(INTERFACE!AD$15,INTERFACE!E209)) -> 0 | B198: =MIN(INTERFACE!C$47,INTERFACE!F209) ->  | C198: =100-INTERFACE!B209 ->  | E198: =INTERFACE!E208+12/1200 -> 1.58 | F198: =((INTERFACE!C$11)/((10^-(INTERFACE!E209))+(INTERFACE!C$11)))*100 ->  | G198: =100-INTERFACE!F209 -> 
A199: =(MIN(INTERFACE!AD$15,INTERFACE!E210)) -> 0 | B199: =MIN(INTERFACE!C$47,INTERFACE!F210) ->  | C199: =100-INTERFACE!B210 ->  | E199: =INTERFACE!E209+12/1200 -> 1.59 | F199: =((INTERFACE!C$11)/((10^-(INTERFACE!E210))+(INTERFACE!C$11)))*100 ->  | G199: =100-INTERFACE!F210 -> 
A200: =(MIN(INTERFACE!AD$15,INTERFACE!E211)) -> 0 | B200: =MIN(INTERFACE!C$47,INTERFACE!F211) ->  | C200: =100-INTERFACE!B211 ->  | E200: =INTERFACE!E210+12/1200 -> 1.6 | F200: =((INTERFACE!C$11)/((10^-(INTERFACE!E211))+(INTERFACE!C$11)))*100 ->  | G200: =100-INTERFACE!F211 -> 
A201: =(MIN(INTERFACE!AD$15,INTERFACE!E212)) -> 0 | B201: =MIN(INTERFACE!C$47,INTERFACE!F212) ->  | C201: =100-INTERFACE!B212 ->  | E201: =INTERFACE!E211+12/1200 -> 1.61 | F201: =((INTERFACE!C$11)/((10^-(INTERFACE!E212))+(INTERFACE!C$11)))*100 ->  | G201: =100-INTERFACE!F212 -> 
A202: =(MIN(INTERFACE!AD$15,INTERFACE!E213)) -> 0 | B202: =MIN(INTERFACE!C$47,INTERFACE!F213) ->  | C202: =100-INTERFACE!B213 ->  | E202: =INTERFACE!E212+12/1200 -> 1.62 | F202: =((INTERFACE!C$11)/((10^-(INTERFACE!E213))+(INTERFACE!C$11)))*100 ->  | G202: =100-INTERFACE!F213 -> 
A203: =(MIN(INTERFACE!AD$15,INTERFACE!E214)) -> 0 | B203: =MIN(INTERFACE!C$47,INTERFACE!F214) ->  | C203: =100-INTERFACE!B214 ->  | E203: =INTERFACE!E213+12/1200 -> 1.63 | F203: =((INTERFACE!C$11)/((10^-(INTERFACE!E214))+(INTERFACE!C$11)))*100 ->  | G203: =100-INTERFACE!F214 -> 
A204: =(MIN(INTERFACE!AD$15,INTERFACE!E215)) -> 0 | B204: =MIN(INTERFACE!C$47,INTERFACE!F215) ->  | C204: =100-INTERFACE!B215 ->  | E204: =INTERFACE!E214+12/1200 -> 1.64 | F204: =((INTERFACE!C$11)/((10^-(INTERFACE!E215))+(INTERFACE!C$11)))*100 ->  | G204: =100-INTERFACE!F215 -> 
A205: =(MIN(INTERFACE!AD$15,INTERFACE!E216)) -> 0 | B205: =MIN(INTERFACE!C$47,INTERFACE!F216) ->  | C205: =100-INTERFACE!B216 ->  | E205: =INTERFACE!E215+12/1200 -> 1.65 | F205: =((INTERFACE!C$11)/((10^-(INTERFACE!E216))+(INTERFACE!C$11)))*100 ->  | G205: =100-INTERFACE!F216 -> 
A206: =(MIN(INTERFACE!AD$15,INTERFACE!E217)) -> 0 | B206: =MIN(INTERFACE!C$47,INTERFACE!F217) ->  | C206: =100-INTERFACE!B217 ->  | E206: =INTERFACE!E216+12/1200 -> 1.66 | F206: =((INTERFACE!C$11)/((10^-(INTERFACE!E217))+(INTERFACE!C$11)))*100 ->  | G206: =100-INTERFACE!F217 -> 
A207: =(MIN(INTERFACE!AD$15,INTERFACE!E218)) -> 0 | B207: =MIN(INTERFACE!C$47,INTERFACE!F218) ->  | C207: =100-INTERFACE!B218 ->  | E207: =INTERFACE!E217+12/1200 -> 1.67 | F207: =((INTERFACE!C$11)/((10^-(INTERFACE!E218))+(INTERFACE!C$11)))*100 ->  | G207: =100-INTERFACE!F218 -> 
A208: =(MIN(INTERFACE!AD$15,INTERFACE!E219)) -> 0 | B208: =MIN(INTERFACE!C$47,INTERFACE!F219) ->  | C208: =100-INTERFACE!B219 ->  | E208: =INTERFACE!E218+12/1200 -> 1.68 | F208: =((INTERFACE!C$11)/((10^-(INTERFACE!E219))+(INTERFACE!C$11)))*100 ->  | G208: =100-INTERFACE!F219 -> 
A209: =(MIN(INTERFACE!AD$15,INTERFACE!E220)) -> 0 | B209: =MIN(INTERFACE!C$47,INTERFACE!F220) ->  | C209: =100-INTERFACE!B220 ->  | E209: =INTERFACE!E219+12/1200 -> 1.69 | F209: =((INTERFACE!C$11)/((10^-(INTERFACE!E220))+(INTERFACE!C$11)))*100 ->  | G209: =100-INTERFACE!F220 -> 
A210: =(MIN(INTERFACE!AD$15,INTERFACE!E221)) -> 0 | B210: =MIN(INTERFACE!C$47,INTERFACE!F221) ->  | C210: =100-INTERFACE!B221 ->  | E210: =INTERFACE!E220+12/1200 -> 1.7 | F210: =((INTERFACE!C$11)/((10^-(INTERFACE!E221))+(INTERFACE!C$11)))*100 ->  | G210: =100-INTERFACE!F221 -> 
A211: =(MIN(INTERFACE!AD$15,INTERFACE!E222)) -> 0 | B211: =MIN(INTERFACE!C$47,INTERFACE!F222) ->  | C211: =100-INTERFACE!B222 ->  | E211: =INTERFACE!E221+12/1200 -> 1.71 | F211: =((INTERFACE!C$11)/((10^-(INTERFACE!E222))+(INTERFACE!C$11)))*100 ->  | G211: =100-INTERFACE!F222 -> 
A212: =(MIN(INTERFACE!AD$15,INTERFACE!E223)) -> 0 | B212: =MIN(INTERFACE!C$47,INTERFACE!F223) ->  | C212: =100-INTERFACE!B223 ->  | E212: =INTERFACE!E222+12/1200 -> 1.72 | F212: =((INTERFACE!C$11)/((10^-(INTERFACE!E223))+(INTERFACE!C$11)))*100 ->  | G212: =100-INTERFACE!F223 -> 
A213: =(MIN(INTERFACE!AD$15,INTERFACE!E224)) -> 0 | B213: =MIN(INTERFACE!C$47,INTERFACE!F224) ->  | C213: =100-INTERFACE!B224 ->  | E213: =INTERFACE!E223+12/1200 -> 1.73 | F213: =((INTERFACE!C$11)/((10^-(INTERFACE!E224))+(INTERFACE!C$11)))*100 ->  | G213: =100-INTERFACE!F224 -> 
... 1023 more rows
